Workbook

Sheet MAIN
C1: Molwt ver. 1.70 © 2019-2026 I.Sawaki
K2: Atomic Weight | L2: 0 | M2: 0 : AW2025, 1 : 4digit AW
K3: Input Interpretation | L3: 1 | M3: 0 : As input, 1 : Exhaustive

Sheet DATA
C1: 原子量表（2026）
A3: No. | B3: Symbol | C3: 元素名 | D3: Atomic Name | E3: Atomic Weight | F3: 4digit AW | H3: ◎ 原子量表（2026）
A4: 1 | B4: H | C4: 水素 | D4: Hydrogen | E4: =(1.00784+1.00811)/2 -> 1.007975 | F4: 1.008 | G4: =E4-F4 -> -2.5e-05 | I4: https://www.chemistry.or.jp/know/doc/atom_2026.pdf
A5: 2 | B5: He | C5: ヘリウム | D5: Helium | E5: 4.002602 | F5: 4.003 | G5: =E5-F5 -> -0.000398
A6: 3 | B6: Li | C6: リチウム | D6: Lithium | E6: =(6.938+6.997)/2 -> 6.9675 | F6: 6.94 | G6: 0.0275 | H6: ※ | I6: 出典（上記PDF）によると、H, Li, B, C, N, O, Mg, Si, S, Cl, Ar, Br, Tl, Pbの14元素については、
A7: 4 | B7: Be | C7: ベリリウム | D7: Beryllium | E7: 9.0121831 | F7: 9.012 | G7: 0.0001831 | I7: 同位体存在度の変動があるため、原子量も変動範囲（の下限と上限）で示されている。
A8: 5 | B8: B | C8: ホウ素 | D8: Boron | E8: =(10.806+10.821)/2 -> 10.8135 | F8: 10.81 | G8: 0.0035 | I8: これらの元素については、「変動範囲の中間点を原子量の値として使用しないこと」という
A9: 6 | B9: C | C9: 炭素 | D9: Carbon | E9: =(12.0096+12.0116)/2 -> 12.0106 | F9: 12.01 | G9: 0.0006 | I9: 注意書きがされている。しかし、ここでは敢えて、これら14元素については変動範囲の中央
A10: 7 | B10: N | C10: 窒素 | D10: Nitrogen | E10: =(14.00643+14.00728)/2 -> 14.006855 | F10: 14.01 | G10: -0.003145 | I10: 値を原子量の値として使用しているので、注意されたい（計算の便宜上仕方ないのでは？）
A11: 8 | B11: O | C11: 酸素 | D11: Oxygen | E11: =(15.99903+15.99977)/2 -> 15.9994 | F11: 16 | G11: -0.0006
A12: 9 | B12: F | C12: フッ素 | D12: Fluorine | E12: 18.99840316 | F12: 19 | G12: -0.001596838 | I12: なお、上記の記事では、このような不確かさの取り扱いの例として、エタノールの分子量の
A13: 10 | B13: Ne | C13: ネオン | D13: Neon | E13: 20.1797 | F13: 20.18 | G13: -0.0003 | I13: 計算例が示されており、これを見ると、分子量の値としては、それぞれの元素の原子量の
A14: 11 | B14: Na | C14: ナトリウム | D14: Sodium | E14: 22.98976928 | F14: 22.99 | G14: -0.00023072 | I14: 変動範囲の中央値を用いて求め、その不確かさを原子量の不確かさの分布が長方形分布であ
A15: 12 | B15: Mg | C15: マグネシウム | D15: Magnesium | E15: =(24.304+24.307)/2 -> 24.3055 | F15: 24.31 | G15: -0.0045 | I15: るとして、誤差伝搬の式を用いて求めている。
A16: 13 | B16: Al | C16: アルミニウム | D16: Aluminium | E16: 26.9815384 | F16: 26.98 | G16: 0.0015384
A17: 14 | B17: Si | C17: ケイ素 | D17: Silicon | E17: =(28.084+28.086)/2 -> 28.085 | F17: 28.09 | G17: -0.005 | H17: ＊ | I17: 今後、原子量の値が改定されたときや、使用者の過去の計算との整合性を取るために、独自
A18: 15 | B18: P | C18: リン | D18: Phosphorus | E18: 30.973762 | F18: 30.97 | G18: 0.003761998 | I18: の原子量の値を使用したいというような場合、この表の原子量の値を適宜、上書きすること
A19: 16 | B19: S | C19: 硫黄 | D19: Sulfur | E19: =(32.059+32.076)/2 -> 32.0675 | F19: 32.07 | G19: -0.0025 | I19: により、所望の原子量の値を計算に使用することができる
A20: 17 | B20: Cl | C20: 塩素 | D20: Chlorine | E20: =(35.446+35.457)/2 -> 35.4515 | F20: 35.45 | G20: 0.0015 | I20: （その際、セルの位置が変わるとうまく計算できなくなるので、セルの位置は変えずに、
A21: 18 | B21: Ar | C21: アルゴン | D21: Argon | E21: =(39.792+39.963)/2 -> 39.8775 | F21: 39.95 | G21: -0.0725 | I21: セルの中身だけを上書きすること）
A22: 19 | B22: K | C22: カリウム | D22: Potassium | E22: 39.0983 | F22: 39.1 | G22: -0.0017
A23: 20 | B23: Ca | C23: カルシウム | D23: Calcium | E23: 40.078 | F23: 40.08 | G23: -0.002 | H23: ☆ | I23: 原子量表2019から原子量表2020への変更点
A24: 21 | B24: Sc | C24: スカンジウム | D24: Scandium | E24: 44.955907 | F24: 44.96 | G24: -0.004093 | I24: 原子番号72、Hfの原子量が、178.49 から 178.486 に変更（4桁原子量は変更なし）
A25: 22 | B25: Ti | C25: チタン | D25: Titanium | E25: 47.867 | F25: 47.87 | G25: -0.003 | H25: ☆ | I25: 原子量表2020から原子量表2021への変更点
A26: 23 | B26: V | C26: バナジウム | D26: Vanadium | E26: 50.9415 | F26: 50.94 | G26: 0.0015 | I26: なし
A27: 24 | B27: Cr | C27: クロム | D27: Chromium | E27: 51.9961 | F27: 52 | G27: -0.0039 | H27: ☆ | I27: 原子量表2021から原子量表2022への変更点
A28: 25 | B28: Mn | C28: マンガン | D28: Manganese | E28: 54.938043 | F28: 54.94 | G28: -0.001957 | I28: 原子番号3、Liの4桁原子量が、6.941から6.94に変更（通常の原子量は変更なし）
A29: 26 | B29: Fe | C29: 鉄 | D29: Iron | E29: 55.845 | F29: 55.85 | G29: -0.005 | I29: 原子番号9、Fの原子量が、18.998403163から18.998403162に変更（4桁原子量は変更なし）
A30: 27 | B30: Co | C30: コバルト | D30: Cobalt | E30: 58.933194 | F30: 58.93 | G30: 0.003194 | I30: 原子番号21、Scの原子量が、44.955908から44.955907に変更（4桁原子量は変更なし）
A31: 28 | B31: Ni | C31: ニッケル | D31: Nickel | E31: 58.6934 | F31: 58.69 | G31: 0.0034 | I31: 原子番号39、Yの原子量が、88.90584から88.905838に変更（4桁原子量は変更なし）
A32: 29 | B32: Cu | C32: 銅 | D32: Copper | E32: 63.546 | F32: 63.55 | G32: -0.004 | I32: 原子番号65、Tbの原子量が、158.925354(8)から158.925354(7)に変更（4桁原子量は変更なし）
A33: 30 | B33: Zn | C33: 亜鉛 | D33: Zinc | E33: 65.38 | F33: 65.38 | G33: 0 | I33: 原子番号67、Hoの原子量が、164.930328から164.930329に変更（4桁原子量は変更なし）
A34: 31 | B34: Ga | C34: ガリウム | D34: Gallium | E34: 69.723 | F34: 69.72 | G34: 0.003 | I34: 原子番号69、Tmの原子量が、168.934218から168.934219に変更（4桁原子量は変更なし）
A35: 32 | B35: Ge | C35: ゲルマニウム | D35: Germanium | E35: 72.63 | F35: 72.63 | G35: 0 | I35: 原子番号82、Pbの原子量が、207.2から206.14～207.94に変更（4桁原子量は変更なし）
A36: 33 | B36: As | C36: ヒ素 | D36: Arsenic | E36: 74.921595 | F36: 74.92 | G36: 0.001595 | H36: ☆ | I36: 原子量表2022から原子量表2023への変更点
A37: 34 | B37: Se | C37: セレン | D37: Selenium | E37: 78.971 | F37: 78.97 | G37: 0.001 | I37: なし
A38: 35 | B38: Br | C38: 臭素 | D38: Bromine | E38: =(79.901+79.907)/2 -> 79.904 | F38: 79.9 | G38: 0.004 | H38: ☆ | I38: 原子量表2023から原子量表2024への変更点
A39: 36 | B39: Kr | C39: クリプトン | D39: Krypton | E39: 83.798 | F39: 83.8 | G39: -0.002 | I39: なし
A40: 37 | B40: Rb | C40: ルビジウム | D40: Rubidium | E40: 85.4678 | F40: 85.47 | G40: -0.0022 | H40: ☆ | I40: 原子量表2024から原子量表2025への変更点
A41: 38 | B41: Sr | C41: ストロンチウム | D41: Strontium | E41: 87.62 | F41: 87.62 | G41: 0 | I41: 原子番号40、Zrの原子量が、91.224から91.222に変更（4桁原子量は変更なし）
A42: 39 | B42: Y | C42: イットリウム | D42: Yttrium | E42: 88.905838 | F42: 88.91 | G42: -0.004162 | I42: 原子番号64、Gdの原子量が、157.25から157.249に変更、4桁原子量は157.3から157.2に変更
A43: 40 | B43: Zr | C43: ジルコニウム | D43: Zirconium | E43: 91.222 | F43: 91.22 | G43: 0.002 | I43: 原子番号71、Luの原子量が、174.9668から174.96669に変更（4桁原子量は変更なし）
A44: 41 | B44: Nb | C44: ニオブ | D44: Niobium | E44: 92.90637 | F44: 92.91 | G44: -0.00363 | H44: ☆ | I44: 原子量表2025から原子量表2026への変更点
A45: 42 | B45: Mo | C45: モリブデン | D45: Molybdenum | E45: 95.95 | F45: 95.95 | G45: 0 | I45: なし
A46: 43 | B46: Tc | C46: テクネチウム | D46: Technetium | E46: 99 | F46: 99 | G46: 0
A47: 44 | B47: Ru | C47: ルテニウム | D47: Ruthenium | E47: 101.07 | F47: 101.1 | G47: -0.03
A48: 45 | B48: Rh | C48: ロジウム | D48: Rhodium | E48: 102.90549 | F48: 102.9 | G48: 0.00549
A49: 46 | B49: Pd | C49: パラジウム | D49: Palladium | E49: 106.42 | F49: 106.4 | G49: 0.02
A50: 47 | B50: Ag | C50: 銀 | D50: Silver | E50: 107.8682 | F50: 107.9 | G50: -0.0318
A51: 48 | B51: Cd | C51: カドミウム | D51: Cadmium | E51: 112.414 | F51: 112.4 | G51: 0.014
A52: 49 | B52: In | C52: インジウム | D52: Indium | E52: 114.818 | F52: 114.8 | G52: 0.018
A53: 50 | B53: Sn | C53: スズ | D53: Tin | E53: 118.71 | F53: 118.7 | G53: 0.01
A54: 51 | B54: Sb | C54: アンチモン | D54: Antimony | E54: 121.76 | F54: 121.8 | G54: -0.04
A55: 52 | B55: Te | C55: テルル | D55: Tellurium | E55: 127.6 | F55: 127.6 | G55: 0
A56: 53 | B56: I | C56: ヨウ素 | D56: Iodine | E56: 126.90447 | F56: 126.9 | G56: 0.00447
A57: 54 | B57: Xe | C57: キセノン | D57: Xenon | E57: 131.293 | F57: 131.3 | G57: -0.007
A58: 55 | B58: Cs | C58: セシウム | D58: Caesium | E58: 132.905452 | F58: 132.9 | G58: 0.00545196
A59: 56 | B59: Ba | C59: バリウム | D59: Barium | E59: 137.327 | F59: 137.3 | G59: 0.027
A60: 57 | B60: La | C60: ランタン | D60: Lanthanum | E60: 138.90547 | F60: 138.9 | G60: 0.00547
A61: 58 | B61: Ce | C61: セリウム | D61: Cerium | E61: 140.116 | F61: 140.1 | G61: 0.016
A62: 59 | B62: Pr | C62: プラセオジム | D62: Praseodymium | E62: 140.90766 | F62: 140.9 | G62: 0.00766
A63: 60 | B63: Nd | C63: ネオジム | D63: Neodymium | E63: 144.242 | F63: 144.2 | G63: 0.042
A64: 61 | B64: Pm | C64: プロメチウム | D64: Promethium | E64: 145 | F64: 145 | G64: 0
A65: 62 | B65: Sm | C65: サマリウム | D65: Samarium | E65: 150.36 | F65: 150.4 | G65: -0.04
A66: 63 | B66: Eu | C66: ユウロピウム | D66: Europium | E66: 151.964 | F66: 152 | G66: -0.036
A67: 64 | B67: Gd | C67: ガドリニウム | D67: Gadolinium | E67: 157.249 | F67: 157.2 | G67: 0.049
A68: 65 | B68: Tb | C68: テルビウム | D68: Terbium | E68: 158.925354 | F68: 158.9 | G68: 0.025354
A69: 66 | B69: Dy | C69: ジスプロシウム | D69: Dysprosium | E69: 162.5 | F69: 162.5 | G69: =E69-F69 -> 0
A70: 67 | B70: Ho | C70: ホルミウム | D70: Holmium | E70: 164.930329 | F70: 164.9 | G70: 0.030329
A71: 68 | B71: Er | C71: エルビウム | D71: Erbium | E71: 167.259 | F71: 167.3 | G71: -0.041
A72: 69 | B72: Tm | C72: ツリウム | D72: Thulium | E72: 168.934219 | F72: 168.9 | G72: 0.034219
A73: 70 | B73: Yb | C73: イッテルビウム | D73: Ytterbium | E73: 173.045 | F73: 173 | G73: 0.045
A74: 71 | B74: Lu | C74: ルテチウム | D74: Lutetium | E74: 174.96669 | F74: 175 | G74: -0.03331
A75: 72 | B75: Hf | C75: ハフニウム | D75: Hafnium | E75: 178.486 | F75: 178.5 | G75: -0.014
A76: 73 | B76: Ta | C76: タンタル | D76: Tantalum | E76: 180.94788 | F76: 180.9 | G76: 0.04788
A77: 74 | B77: W | C77: タングステン | D77: Tungsten | E77: 183.84 | F77: 183.8 | G77: 0.04
A78: 75 | B78: Re | C78: レニウム | D78: Rhenium | E78: 186.207 | F78: 186.2 | G78: 0.007
A79: 76 | B79: Os | C79: オスミウム | D79: Osmium | E79: 190.23 | F79: 190.2 | G79: 0.03
A80: 77 | B80: Ir | C80: イリジウム | D80: Iridium | E80: 192.217 | F80: 192.2 | G80: 0.017
A81: 78 | B81: Pt | C81: 白金 | D81: Platinum | E81: 195.084 | F81: 195.1 | G81: -0.016
A82: 79 | B82: Au | C82: 金 | D82: Gold | E82: 196.96657 | F82: 197 | G82: -0.03343
A83: 80 | B83: Hg | C83: 水銀 | D83: Mercury | E83: 200.592 | F83: 200.6 | G83: -0.008
A84: 81 | B84: Tl | C84: タリウム | D84: Thallium | E84: =(204.382+204.385)/2 -> 204.3835 | F84: 204.4 | G84: -0.0165
A85: 82 | B85: Pb | C85: 鉛 | D85: Lead | E85: =(206.14+207.94)/2 -> 207.04 | F85: 207.2 | G85: -0.16
A86: 83 | B86: Bi | C86: ビスマス | D86: Bismuth | E86: 208.9804 | F86: 209 | G86: -0.0196
A87: 84 | B87: Po | C87: ポロニウム | D87: Polonium | E87: 210 | F87: 210 | G87: 0
A88: 85 | B88: At | C88: アスタチン | D88: Astatine | E88: 210 | F88: 210 | G88: 0
A89: 86 | B89: Rn | C89: ラドン | D89: Radon | E89: 222 | F89: 222 | G89: 0
A90: 87 | B90: Fr | C90: フランシウム | D90: Francium | E90: 223 | F90: 223 | G90: 0
A91: 88 | B91: Ra | C91: ラジウム | D91: Radium | E91: 226 | F91: 226 | G91: 0
A92: 89 | B92: Ac | C92: アクチニウム | D92: Actinium | E92: 227 | F92: 227 | G92: 0
A93: 90 | B93: Th | C93: トリウム | D93: Thorium | E93: 232.0377 | F93: 232 | G93: 0.0377
A94: 91 | B94: Pa | C94: プロトアクチニウム | D94: Protactinium | E94: 231.03588 | F94: 231 | G94: 0.03588
A95: 92 | B95: U | C95: ウラン | D95: Uranium | E95: 238.02891 | F95: 238 | G95: 0.02891
A96: 93 | B96: Np | C96: ネプツニウム | D96: Neptunium | E96: 237 | F96: 237 | G96: 0
A97: 94 | B97: Pu | C97: プルトニウム | D97: Plutonium | E97: 239 | F97: 239 | G97: 0
A98: 95 | B98: Am | C98: アメリシウム | D98: Americium | E98: 243 | F98: 243 | G98: 0
A99: 96 | B99: Cm | C99: キュリウム | D99: Curium | E99: 247 | F99: 247 | G99: 0
A100: 97 | B100: Bk | C100: バークリウム | D100: Berkelium | E100: 247 | F100: 247 | G100: 0
A101: 98 | B101: Cf | C101: カリホルニウム | D101: Californium | E101: 252 | F101: 252 | G101: 0
A102: 99 | B102: Es | C102: アインスタイニウム | D102: Einsteinium | E102: 252 | F102: 252 | G102: 0
A103: 100 | B103: Fm | C103: フェルミウム | D103: Fermium | E103: 257 | F103: 257 | G103: 0
A104: 101 | B104: Md | C104: メンデレビウム | D104: Mendelevium | E104: 258 | F104: 258 | G104: 0
A105: 102 | B105: No | C105: ノーベリウム | D105: Nobelium | E105: 259 | F105: 259 | G105: 0
A106: 103 | B106: Lr | C106: ローレンシウム | D106: Lawrencium | E106: 262 | F106: 262 | G106: 0
A107: 104 | B107: Rf | C107: ラザホージウム | D107: Rutherfordium | E107: 267 | F107: 267 | G107: 0
A108: 105 | B108: Db | C108: ドブニウム | D108: Dubnium | E108: 268 | F108: 268 | G108: 0
A109: 106 | B109: Sg | C109: シーボーギウム | D109: Seaborgium | E109: 271 | F109: 271 | G109: 0
A110: 107 | B110: Bh | C110: ボーリウム | D110: Bohrium | E110: 272 | F110: 272 | G110: 0
A111: 108 | B111: Hs | C111: ハッシウム | D111: Hassium | E111: 277 | F111: 277 | G111: 0
A112: 109 | B112: Mt | C112: マイトネリウム | D112: Meitnerium | E112: 276 | F112: 276 | G112: 0
A113: 110 | B113: Ds | C113: ダームスタチウム | D113: Darmstadtium | E113: 281 | F113: 281 | G113: 0
A114: 111 | B114: Rg | C114: レントゲニウム | D114: Roentgenium | E114: 280 | F114: 280 | G114: 0
A115: 112 | B115: Cn | C115: コペルニシウム | D115: Copernicium | E115: 285 | F115: 285 | G115: 0
A116: 113 | B116: Nh | C116: ニホニウム | D116: Nihonium | E116: 278 | F116: 278 | G116: 0
A117: 114 | B117: Fl | C117: フレロビウム | D117: Flerovium | E117: 289 | F117: 289 | G117: 0
A118: 115 | B118: Mc | C118: モスコビウム | D118: Moscovium | E118: 289 | F118: 289 | G118: 0
A119: 116 | B119: Lv | C119: リバモリウム | D119: Livermorium | E119: 293 | F119: 293 | G119: 0
A120: 117 | B120: Ts | C120: テネシン | D120: Tennessine | E120: 293 | F120: 293 | G120: 0
A121: 118 | B121: Og | C121: オガネソン | D121: Oganesson | E121: 294 | F121: 294 | G121: 0

Sheet ABOUT
B1: =LEFT(MAIN!C1,5) -> Molwt | C1: =MID(MAIN!C1,6,10) -> ver. 1.70 | E1: =RIGHT(MAIN!C1,22) -> © 2019-2026 I.Sawaki | I1: Mail to: | J1: cycle.sawaki@nifty.com
I2: URL: | J2: https://pe-sawaki.com/tool/molwt/
A3: １．特長
B4: ・入力された化学式等の式量（分子量など）を計算するエクセルのワークブックです
B5: ・計算した式量と共に、元素割合（モル比、質量比）を表示します
B6: ・式の係数は、小数や分数にも対応しています（セラミックスなどでは、よく使われます）
B7: ・また、式中に括弧が複数セット含まれていても、9階層までは大丈夫です
B8: ・入力式を、大文字小文字の区別まで正しく入力されているとして評価するモードと、大文字小文字を入れ替えて網羅的に評価し、候補と
B9: なる式を列挙して式量を計算するモードを切り替え可能です。
B10: （例えば、"nippon" と入力すると、NiPPoN、NiPPON、NIPPoN、NIPPONの４通りの候補が探索され、それぞれ式量が表示されます）
B11: ・初期設定では、原子量は最新の原子量2025（またはその4桁版）を使用しますが、自分の使用したい値に自由に置き換え可能です
B12: 使用する原子量を変更する場合、「DATA」タブの原子量の数値（E列 または F列）を直接書き換えてください。
A14: ２．画面と使用方法
A27: ① | B27: 式の入力欄です。図のように全部小文字で入力した場合、⑧の化学式判定が "1”であれば、網羅的に探索して、候補を全て探し出し、式量を計算します
B28: 係数は小数や分数を使用可能、また、"・” の入力には "+" を使用します
A29: ② | B29: 式の入力後、この計算ボタンを押すと計算を開始します。または、①にてリターン（エンター）キーを押しても計算を開始します
A30: ③ | B30: 計算の結果、式と式量が表示されます。⑧が "1"の場合、①に入力された式を優先的に評価し、それ以外の候補が次に表示されます
A31: ④ | B31: 入力式および計算結果を全て消去します。①にてデリートキーを押しても同じ処理を行います
A32: ⑤ | B32: ③の結果表示欄のうち、ブルーに着色された式について、その式に含まれる元素の割合をモル％と質量％で表示します
A33: ⑥ | B33: 次の候補式について元素割合を計算表示させます
A34: ⑦ | B34: 計算に使用する原子量を切り替えます
A35: ⑧ | B35: ①欄に入力された式を、入力式のままで評価するか、大文字小文字を入れ替えて網羅的に評価するかを選択します
A37: ☆☆ | B37: Microsoftのセキュリティ強化に伴って、Excelマクロが無効となっている場合の対応
B38: ①ファイルをローカルドライブ、ネットワーク共有、クラウド共有等に保存
B39: ②エクスプローラー を開き、ファイルを保存したフォルダーに移動
B40: ③ファイルを右クリックし、コンテキスト メニュー から [プロパティ ] を選択
B41: ④[全般] タブの 下部 に、[セキュリティ] のセクションが表示されるので、
B42: 「許可する(K)」の チェック ボックスをオン にして、[OK] を選択
B43: 参考： https://forest.watch.impress.co.jp/docs/news/1386850.html
A46: ３．履歴
B47: 2019-04-16 | C47: Ver 1.00 初期公開版
B48: 2019-04-24 | C48: Ver 1.01 入力式中の連続文字列長の上限を16文字から24文字に拡張
B49: 2020-04-08 | C49: Ver 1.10 原子量表2020に対応
B50: 2021-04-05 | C50: Ver 1.20 原子量表2021に対応
B51: 2022-04-06 | C51: Ver 1.30 原子量表2022に対応
B52: 2023-04-05 | C52: Ver 1.40 原子量表2023に対応（実質的に原子量表2022と変更なし）、結果クリア後にセルC2にカーソル点滅表示
B53: 2024-04-03 | C53: Ver 1.50 原子量表2024に対応（実質的に原子量表2023と変更なし）
B54: 2025-04-02 | C54: Ver 1.60 原子量表2025に対応
B55: 2026-04-03 | C55: Ver 1.70 原子量表2026に対応

Sheet AW2025
C1: 原子量表（2025）
A3: No. | B3: Symbol | C3: 元素名 | D3: Atomic Name | E3: Atomic Weight | F3: 4digit AW | H3: ◎ 原子量表（2025）
A4: 1 | B4: H | C4: 水素 | D4: Hydrogen | E4: =(1.00784+1.00811)/2 -> 1.007975 | F4: 1.008 | G4: =E4-F4 -> -2.5e-05 | I4: https://www.chemistry.or.jp/know/atom_2025.pdf
A5: 2 | B5: He | C5: ヘリウム | D5: Helium | E5: 4.002602 | F5: 4.003 | G5: =E5-F5 -> -0.000398
A6: 3 | B6: Li | C6: リチウム | D6: Lithium | E6: =(6.938+6.997)/2 -> 6.9675 | F6: 6.94 | G6: 0.0275 | H6: ※ | I6: 出典（上記PDF）によると、H, Li, B, C, N, O, Mg, Si, S, Cl, Ar, Br, Tl, Pbの14元素については、
A7: 4 | B7: Be | C7: ベリリウム | D7: Beryllium | E7: 9.0121831 | F7: 9.012 | G7: 0.0001831 | I7: 同位体存在度の変動があるため、原子量も変動範囲（の下限と上限）で示されている。
A8: 5 | B8: B | C8: ホウ素 | D8: Boron | E8: =(10.806+10.821)/2 -> 10.8135 | F8: 10.81 | G8: 0.0035 | I8: これらの元素については、「変動範囲の中間点を原子量の値として使用しないこと」という
A9: 6 | B9: C | C9: 炭素 | D9: Carbon | E9: =(12.0096+12.0116)/2 -> 12.0106 | F9: 12.01 | G9: 0.0006 | I9: 注意書きがされている。しかし、ここでは敢えて、これら14元素については変動範囲の中央
A10: 7 | B10: N | C10: 窒素 | D10: Nitrogen | E10: =(14.00643+14.00728)/2 -> 14.006855 | F10: 14.01 | G10: -0.003145 | I10: 値を原子量の値として使用しているので、注意されたい（計算の便宜上仕方ないのでは？）
A11: 8 | B11: O | C11: 酸素 | D11: Oxygen | E11: =(15.99903+15.99977)/2 -> 15.9994 | F11: 16 | G11: -0.0006
A12: 9 | B12: F | C12: フッ素 | D12: Fluorine | E12: 18.99840316 | F12: 19 | G12: -0.001596838 | I12: なお、上記の記事では、このような不確かさの取り扱いの例として、エタノールの分子量の
A13: 10 | B13: Ne | C13: ネオン | D13: Neon | E13: 20.1797 | F13: 20.18 | G13: -0.0003 | I13: 計算例が示されており、これを見ると、分子量の値としては、それぞれの元素の原子量の
A14: 11 | B14: Na | C14: ナトリウム | D14: Sodium | E14: 22.98976928 | F14: 22.99 | G14: -0.00023072 | I14: 変動範囲の中央値を用いて求め、その不確かさを原子量の不確かさの分布が長方形分布であ
A15: 12 | B15: Mg | C15: マグネシウム | D15: Magnesium | E15: =(24.304+24.307)/2 -> 24.3055 | F15: 24.31 | G15: -0.0045 | I15: るとして、誤差伝搬の式を用いて求めている。
A16: 13 | B16: Al | C16: アルミニウム | D16: Aluminium | E16: 26.9815384 | F16: 26.98 | G16: 0.0015384
A17: 14 | B17: Si | C17: ケイ素 | D17: Silicon | E17: =(28.084+28.086)/2 -> 28.085 | F17: 28.09 | G17: -0.005 | H17: ＊ | I17: 今後、原子量の値が改定されたときや、使用者の過去の計算との整合性を取るために、独自
A18: 15 | B18: P | C18: リン | D18: Phosphorus | E18: 30.973762 | F18: 30.97 | G18: 0.003761998 | I18: の原子量の値を使用したいというような場合、この表の原子量の値を適宜、上書きすること
A19: 16 | B19: S | C19: 硫黄 | D19: Sulfur | E19: =(32.059+32.076)/2 -> 32.0675 | F19: 32.07 | G19: -0.0025 | I19: により、所望の原子量の値を計算に使用することができる
A20: 17 | B20: Cl | C20: 塩素 | D20: Chlorine | E20: =(35.446+35.457)/2 -> 35.4515 | F20: 35.45 | G20: 0.0015 | I20: （その際、セルの位置が変わるとうまく計算できなくなるので、セルの位置は変えずに、
A21: 18 | B21: Ar | C21: アルゴン | D21: Argon | E21: =(39.792+39.963)/2 -> 39.8775 | F21: 39.95 | G21: -0.0725 | I21: セルの中身だけを上書きすること）
A22: 19 | B22: K | C22: カリウム | D22: Potassium | E22: 39.0983 | F22: 39.1 | G22: -0.0017
A23: 20 | B23: Ca | C23: カルシウム | D23: Calcium | E23: 40.078 | F23: 40.08 | G23: -0.002 | H23: ☆ | I23: 原子量表2019からの変更点
A24: 21 | B24: Sc | C24: スカンジウム | D24: Scandium | E24: 44.955907 | F24: 44.96 | G24: -0.004093 | I24: 原子番号72、Hfの原子量が、178.49 から 178.486 に変更（4桁原子量は変更なし）
A25: 22 | B25: Ti | C25: チタン | D25: Titanium | E25: 47.867 | F25: 47.87 | G25: -0.003 | H25: ☆ | I25: 原子量表2020からの変更点
A26: 23 | B26: V | C26: バナジウム | D26: Vanadium | E26: 50.9415 | F26: 50.94 | G26: 0.0015 | I26: なし
A27: 24 | B27: Cr | C27: クロム | D27: Chromium | E27: 51.9961 | F27: 52 | G27: -0.0039 | H27: ☆ | I27: 原子量表2021からの変更点
A28: 25 | B28: Mn | C28: マンガン | D28: Manganese | E28: 54.938043 | F28: 54.94 | G28: -0.001957 | I28: 原子番号3、Liの4桁原子量が、6.941から6.94に変更（通常の原子量は変更なし）
A29: 26 | B29: Fe | C29: 鉄 | D29: Iron | E29: 55.845 | F29: 55.85 | G29: -0.005 | I29: 原子番号9、Fの原子量が、18.998403163から18.998403162に変更（4桁原子量は変更なし）
A30: 27 | B30: Co | C30: コバルト | D30: Cobalt | E30: 58.933194 | F30: 58.93 | G30: 0.003194 | I30: 原子番号21、Scの原子量が、44.955908から44.955907に変更（4桁原子量は変更なし）
A31: 28 | B31: Ni | C31: ニッケル | D31: Nickel | E31: 58.6934 | F31: 58.69 | G31: 0.0034 | I31: 原子番号39、Yの原子量が、88.90584から88.905838に変更（4桁原子量は変更なし）
A32: 29 | B32: Cu | C32: 銅 | D32: Copper | E32: 63.546 | F32: 63.55 | G32: -0.004 | I32: 原子番号65、Tbの原子量が、158.925354(8)から158.925354(7)に変更（4桁原子量は変更なし）
A33: 30 | B33: Zn | C33: 亜鉛 | D33: Zinc | E33: 65.38 | F33: 65.38 | G33: 0 | I33: 原子番号67、Hoの原子量が、164.930328から164.930329に変更（4桁原子量は変更なし）
A34: 31 | B34: Ga | C34: ガリウム | D34: Gallium | E34: 69.723 | F34: 69.72 | G34: 0.003 | I34: 原子番号69、Tmの原子量が、168.934218から168.934219に変更（4桁原子量は変更なし）
A35: 32 | B35: Ge | C35: ゲルマニウム | D35: Germanium | E35: 72.63 | F35: 72.63 | G35: 0 | I35: 原子番号82、Pbの原子量が、207.2から206.14～207.94に変更（4桁原子量は変更なし）
A36: 33 | B36: As | C36: ヒ素 | D36: Arsenic | E36: 74.921595 | F36: 74.92 | G36: 0.001595 | H36: ☆ | I36: 原子量表2022からの変更点
A37: 34 | B37: Se | C37: セレン | D37: Selenium | E37: 78.971 | F37: 78.97 | G37: 0.001 | I37: なし
A38: 35 | B38: Br | C38: 臭素 | D38: Bromine | E38: =(79.901+79.907)/2 -> 79.904 | F38: 79.9 | G38: 0.004 | H38: ☆ | I38: 原子量表2023からの変更点
A39: 36 | B39: Kr | C39: クリプトン | D39: Krypton | E39: 83.798 | F39: 83.8 | G39: -0.002 | I39: なし
A40: 37 | B40: Rb | C40: ルビジウム | D40: Rubidium | E40: 85.4678 | F40: 85.47 | G40: -0.0022 | H40: ☆ | I40: 原子量表2024からの変更点
A41: 38 | B41: Sr | C41: ストロンチウム | D41: Strontium | E41: 87.62 | F41: 87.62 | G41: 0 | I41: 原子番号40、Zrの原子量が、91.224から91.222に変更（4桁原子量は変更なし）
A42: 39 | B42: Y | C42: イットリウム | D42: Yttrium | E42: 88.905838 | F42: 88.91 | G42: -0.004162 | I42: 原子番号64、Gdの原子量が、157.25から157.249に変更、4桁原子量は157.3から157.2に変更
A43: 40 | B43: Zr | C43: ジルコニウム | D43: Zirconium | E43: 91.222 | F43: 91.22 | G43: 0.002 | I43: 原子番号71、Luの原子量が、174.9668から174.96669に変更（4桁原子量は変更なし）
A44: 41 | B44: Nb | C44: ニオブ | D44: Niobium | E44: 92.90637 | F44: 92.91 | G44: -0.00363
A45: 42 | B45: Mo | C45: モリブデン | D45: Molybdenum | E45: 95.95 | F45: 95.95 | G45: 0
A46: 43 | B46: Tc | C46: テクネチウム | D46: Technetium | E46: 99 | F46: 99 | G46: 0
A47: 44 | B47: Ru | C47: ルテニウム | D47: Ruthenium | E47: 101.07 | F47: 101.1 | G47: -0.03
A48: 45 | B48: Rh | C48: ロジウム | D48: Rhodium | E48: 102.90549 | F48: 102.9 | G48: 0.00549
A49: 46 | B49: Pd | C49: パラジウム | D49: Palladium | E49: 106.42 | F49: 106.4 | G49: 0.02
A50: 47 | B50: Ag | C50: 銀 | D50: Silver | E50: 107.8682 | F50: 107.9 | G50: -0.0318
A51: 48 | B51: Cd | C51: カドミウム | D51: Cadmium | E51: 112.414 | F51: 112.4 | G51: 0.014
A52: 49 | B52: In | C52: インジウム | D52: Indium | E52: 114.818 | F52: 114.8 | G52: 0.018
A53: 50 | B53: Sn | C53: スズ | D53: Tin | E53: 118.71 | F53: 118.7 | G53: 0.01
A54: 51 | B54: Sb | C54: アンチモン | D54: Antimony | E54: 121.76 | F54: 121.8 | G54: -0.04
A55: 52 | B55: Te | C55: テルル | D55: Tellurium | E55: 127.6 | F55: 127.6 | G55: 0
A56: 53 | B56: I | C56: ヨウ素 | D56: Iodine | E56: 126.90447 | F56: 126.9 | G56: 0.00447
A57: 54 | B57: Xe | C57: キセノン | D57: Xenon | E57: 131.293 | F57: 131.3 | G57: -0.007
A58: 55 | B58: Cs | C58: セシウム | D58: Caesium | E58: 132.905452 | F58: 132.9 | G58: 0.00545196
A59: 56 | B59: Ba | C59: バリウム | D59: Barium | E59: 137.327 | F59: 137.3 | G59: 0.027
A60: 57 | B60: La | C60: ランタン | D60: Lanthanum | E60: 138.90547 | F60: 138.9 | G60: 0.00547
A61: 58 | B61: Ce | C61: セリウム | D61: Cerium | E61: 140.116 | F61: 140.1 | G61: 0.016
A62: 59 | B62: Pr | C62: プラセオジム | D62: Praseodymium | E62: 140.90766 | F62: 140.9 | G62: 0.00766
A63: 60 | B63: Nd | C63: ネオジム | D63: Neodymium | E63: 144.242 | F63: 144.2 | G63: 0.042
A64: 61 | B64: Pm | C64: プロメチウム | D64: Promethium | E64: 145 | F64: 145 | G64: 0
A65: 62 | B65: Sm | C65: サマリウム | D65: Samarium | E65: 150.36 | F65: 150.4 | G65: -0.04
A66: 63 | B66: Eu | C66: ユウロピウム | D66: Europium | E66: 151.964 | F66: 152 | G66: -0.036
A67: 64 | B67: Gd | C67: ガドリニウム | D67: Gadolinium | E67: 157.249 | F67: 157.2 | G67: 0.049
A68: 65 | B68: Tb | C68: テルビウム | D68: Terbium | E68: 158.925354 | F68: 158.9 | G68: 0.025354
A69: 66 | B69: Dy | C69: ジスプロシウム | D69: Dysprosium | E69: 162.5 | F69: 162.5 | G69: =E69-F69 -> 0
A70: 67 | B70: Ho | C70: ホルミウム | D70: Holmium | E70: 164.930329 | F70: 164.9 | G70: 0.030329
A71: 68 | B71: Er | C71: エルビウム | D71: Erbium | E71: 167.259 | F71: 167.3 | G71: -0.041
A72: 69 | B72: Tm | C72: ツリウム | D72: Thulium | E72: 168.934219 | F72: 168.9 | G72: 0.034219
A73: 70 | B73: Yb | C73: イッテルビウム | D73: Ytterbium | E73: 173.045 | F73: 173 | G73: 0.045
A74: 71 | B74: Lu | C74: ルテチウム | D74: Lutetium | E74: 174.96669 | F74: 175 | G74: -0.03331
A75: 72 | B75: Hf | C75: ハフニウム | D75: Hafnium | E75: 178.486 | F75: 178.5 | G75: -0.014
A76: 73 | B76: Ta | C76: タンタル | D76: Tantalum | E76: 180.94788 | F76: 180.9 | G76: 0.04788
A77: 74 | B77: W | C77: タングステン | D77: Tungsten | E77: 183.84 | F77: 183.8 | G77: 0.04
A78: 75 | B78: Re | C78: レニウム | D78: Rhenium | E78: 186.207 | F78: 186.2 | G78: 0.007
A79: 76 | B79: Os | C79: オスミウム | D79: Osmium | E79: 190.23 | F79: 190.2 | G79: 0.03
A80: 77 | B80: Ir | C80: イリジウム | D80: Iridium | E80: 192.217 | F80: 192.2 | G80: 0.017
A81: 78 | B81: Pt | C81: 白金 | D81: Platinum | E81: 195.084 | F81: 195.1 | G81: -0.016
A82: 79 | B82: Au | C82: 金 | D82: Gold | E82: 196.96657 | F82: 197 | G82: -0.03343
A83: 80 | B83: Hg | C83: 水銀 | D83: Mercury | E83: 200.592 | F83: 200.6 | G83: -0.008
A84: 81 | B84: Tl | C84: タリウム | D84: Thallium | E84: =(204.382+204.385)/2 -> 204.3835 | F84: 204.4 | G84: -0.0165
A85: 82 | B85: Pb | C85: 鉛 | D85: Lead | E85: =(206.14+207.94)/2 -> 207.04 | F85: 207.2 | G85: -0.16
A86: 83 | B86: Bi | C86: ビスマス | D86: Bismuth | E86: 208.9804 | F86: 209 | G86: -0.0196
A87: 84 | B87: Po | C87: ポロニウム | D87: Polonium | E87: 210 | F87: 210 | G87: 0
A88: 85 | B88: At | C88: アスタチン | D88: Astatine | E88: 210 | F88: 210 | G88: 0
A89: 86 | B89: Rn | C89: ラドン | D89: Radon | E89: 222 | F89: 222 | G89: 0
A90: 87 | B90: Fr | C90: フランシウム | D90: Francium | E90: 223 | F90: 223 | G90: 0
A91: 88 | B91: Ra | C91: ラジウム | D91: Radium | E91: 226 | F91: 226 | G91: 0
A92: 89 | B92: Ac | C92: アクチニウム | D92: Actinium | E92: 227 | F92: 227 | G92: 0
A93: 90 | B93: Th | C93: トリウム | D93: Thorium | E93: 232.0377 | F93: 232 | G93: 0.0377
A94: 91 | B94: Pa | C94: プロトアクチニウム | D94: Protactinium | E94: 231.03588 | F94: 231 | G94: 0.03588
A95: 92 | B95: U | C95: ウラン | D95: Uranium | E95: 238.02891 | F95: 238 | G95: 0.02891
A96: 93 | B96: Np | C96: ネプツニウム | D96: Neptunium | E96: 237 | F96: 237 | G96: 0
A97: 94 | B97: Pu | C97: プルトニウム | D97: Plutonium | E97: 239 | F97: 239 | G97: 0
A98: 95 | B98: Am | C98: アメリシウム | D98: Americium | E98: 243 | F98: 243 | G98: 0
A99: 96 | B99: Cm | C99: キュリウム | D99: Curium | E99: 247 | F99: 247 | G99: 0
A100: 97 | B100: Bk | C100: バークリウム | D100: Berkelium | E100: 247 | F100: 247 | G100: 0
A101: 98 | B101: Cf | C101: カリホルニウム | D101: Californium | E101: 252 | F101: 252 | G101: 0
A102: 99 | B102: Es | C102: アインスタイニウム | D102: Einsteinium | E102: 252 | F102: 252 | G102: 0
A103: 100 | B103: Fm | C103: フェルミウム | D103: Fermium | E103: 257 | F103: 257 | G103: 0
A104: 101 | B104: Md | C104: メンデレビウム | D104: Mendelevium | E104: 258 | F104: 258 | G104: 0
A105: 102 | B105: No | C105: ノーベリウム | D105: Nobelium | E105: 259 | F105: 259 | G105: 0
A106: 103 | B106: Lr | C106: ローレンシウム | D106: Lawrencium | E106: 262 | F106: 262 | G106: 0
A107: 104 | B107: Rf | C107: ラザホージウム | D107: Rutherfordium | E107: 267 | F107: 267 | G107: 0
A108: 105 | B108: Db | C108: ドブニウム | D108: Dubnium | E108: 268 | F108: 268 | G108: 0
A109: 106 | B109: Sg | C109: シーボーギウム | D109: Seaborgium | E109: 271 | F109: 271 | G109: 0
A110: 107 | B110: Bh | C110: ボーリウム | D110: Bohrium | E110: 272 | F110: 272 | G110: 0
A111: 108 | B111: Hs | C111: ハッシウム | D111: Hassium | E111: 277 | F111: 277 | G111: 0
A112: 109 | B112: Mt | C112: マイトネリウム | D112: Meitnerium | E112: 276 | F112: 276 | G112: 0
A113: 110 | B113: Ds | C113: ダームスタチウム | D113: Darmstadtium | E113: 281 | F113: 281 | G113: 0
A114: 111 | B114: Rg | C114: レントゲニウム | D114: Roentgenium | E114: 280 | F114: 280 | G114: 0
A115: 112 | B115: Cn | C115: コペルニシウム | D115: Copernicium | E115: 285 | F115: 285 | G115: 0
A116: 113 | B116: Nh | C116: ニホニウム | D116: Nihonium | E116: 278 | F116: 278 | G116: 0
A117: 114 | B117: Fl | C117: フレロビウム | D117: Flerovium | E117: 289 | F117: 289 | G117: 0
A118: 115 | B118: Mc | C118: モスコビウム | D118: Moscovium | E118: 289 | F118: 289 | G118: 0
A119: 116 | B119: Lv | C119: リバモリウム | D119: Livermorium | E119: 293 | F119: 293 | G119: 0
A120: 117 | B120: Ts | C120: テネシン | D120: Tennessine | E120: 293 | F120: 293 | G120: 0
A121: 118 | B121: Og | C121: オガネソン | D121: Oganesson | E121: 294 | F121: 294 | G121: 0

Sheet AW2024
C1: 原子量表（2024）
A3: No. | B3: Symbol | C3: 元素名 | D3: Atomic Name | E3: Atomic Weight | F3: 4digit AW | H3: ◎ 原子量表（2024）
A4: 1 | B4: H | C4: 水素 | D4: Hydrogen | E4: =(1.00784+1.00811)/2 -> 1.007975 | F4: 1.008 | G4: =E4-F4 -> -2.5e-05 | I4: https://www.chemistry.or.jp/know/atom_2024.pdf
A5: 2 | B5: He | C5: ヘリウム | D5: Helium | E5: 4.002602 | F5: 4.003 | G5: =E5-F5 -> -0.000398
A6: 3 | B6: Li | C6: リチウム | D6: Lithium | E6: =(6.938+6.997)/2 -> 6.9675 | F6: 6.94 | G6: 0.0275 | H6: ※ | I6: 出典（上記PDF）によると、H、C、N、Oなど14元素については、
A7: 4 | B7: Be | C7: ベリリウム | D7: Beryllium | E7: 9.0121831 | F7: 9.012 | G7: 0.0001831 | I7: 同位体存在度の変動があるため、原子量も変動範囲（の下限と上限）で示されている。
A8: 5 | B8: B | C8: ホウ素 | D8: Boron | E8: =(10.806+10.821)/2 -> 10.8135 | F8: 10.81 | G8: 0.0035 | I8: これらの元素については、「変動範囲の中間点を原子量の値として使用しないこと」という
A9: 6 | B9: C | C9: 炭素 | D9: Carbon | E9: =(12.0096+12.0116)/2 -> 12.0106 | F9: 12.01 | G9: 0.0006 | I9: 注意書きがされている。しかし、ここでは敢えて、これら14元素については変動範囲の中間
A10: 7 | B10: N | C10: 窒素 | D10: Nitrogen | E10: =(14.00643+14.00728)/2 -> 14.006855 | F10: 14.01 | G10: -0.003145 | I10: 値を原子量の値として使用しているので、注意されたい（計算の便宜上仕方ないのでは？）
A11: 8 | B11: O | C11: 酸素 | D11: Oxygen | E11: =(15.99903+15.99977)/2 -> 15.9994 | F11: 16 | G11: -0.0006
A12: 9 | B12: F | C12: フッ素 | D12: Fluorine | E12: 18.99840316 | F12: 19 | G12: -0.001596838 | I12: なお、上記の記事では、このような不確かさの取り扱いの例として、エタノールの分子量の
A13: 10 | B13: Ne | C13: ネオン | D13: Neon | E13: 20.1797 | F13: 20.18 | G13: -0.0003 | I13: 計算例が示されており、これを見ると、分子量の値としては、それぞれの元素の原子量の
A14: 11 | B14: Na | C14: ナトリウム | D14: Sodium | E14: 22.98976928 | F14: 22.99 | G14: -0.00023072 | I14: 変動範囲の中央値を用いて求め、その不確かさを原子量の不確かさの分布が長方形分布であ
A15: 12 | B15: Mg | C15: マグネシウム | D15: Magnesium | E15: =(24.304+24.307)/2 -> 24.3055 | F15: 24.31 | G15: -0.0045 | I15: るとして、誤差伝搬の式を用いて求めている。
A16: 13 | B16: Al | C16: アルミニウム | D16: Aluminium | E16: 26.9815384 | F16: 26.98 | G16: 0.0015384
A17: 14 | B17: Si | C17: ケイ素 | D17: Silicon | E17: =(28.084+28.086)/2 -> 28.085 | F17: 28.09 | G17: -0.005 | H17: ＊ | I17: 今後、原子量の値が改定されたときや、使用者の過去の計算との整合性を取るために、独自
A18: 15 | B18: P | C18: リン | D18: Phosphorus | E18: 30.973762 | F18: 30.97 | G18: 0.003761998 | I18: の原子量の値を使用したいというような場合、この表の原子量の値を適宜、上書きすること
A19: 16 | B19: S | C19: 硫黄 | D19: Sulfur | E19: =(32.059+32.076)/2 -> 32.0675 | F19: 32.07 | G19: -0.0025 | I19: により、所望の原子量の値を計算に使用することができる
A20: 17 | B20: Cl | C20: 塩素 | D20: Chlorine | E20: =(35.446+35.457)/2 -> 35.4515 | F20: 35.45 | G20: 0.0015 | I20: （その際、セルの位置が変わるとうまく計算できなくなるので、セルの位置は変えずに、
A21: 18 | B21: Ar | C21: アルゴン | D21: Argon | E21: =(39.792+39.963)/2 -> 39.8775 | F21: 39.95 | G21: -0.0725 | I21: セルの中身だけを上書きすること）
A22: 19 | B22: K | C22: カリウム | D22: Potassium | E22: 39.0983 | F22: 39.1 | G22: -0.0017
A23: 20 | B23: Ca | C23: カルシウム | D23: Calcium | E23: 40.078 | F23: 40.08 | G23: -0.002 | H23: ☆ | I23: 原子量表2019からの変更点
A24: 21 | B24: Sc | C24: スカンジウム | D24: Scandium | E24: 44.955907 | F24: 44.96 | G24: -0.004093 | I24: 原子番号72、Hfの原子量が、178.49 から 178.486 に変更（4桁原子量は変更なし）
A25: 22 | B25: Ti | C25: チタン | D25: Titanium | E25: 47.867 | F25: 47.87 | G25: -0.003 | H25: ☆ | I25: 原子量表2020からの変更点
A26: 23 | B26: V | C26: バナジウム | D26: Vanadium | E26: 50.9415 | F26: 50.94 | G26: 0.0015 | I26: なし
A27: 24 | B27: Cr | C27: クロム | D27: Chromium | E27: 51.9961 | F27: 52 | G27: -0.0039 | H27: ☆ | I27: 原子量表2021からの変更点
A28: 25 | B28: Mn | C28: マンガン | D28: Manganese | E28: 54.938043 | F28: 54.94 | G28: -0.001957 | I28: 原子番号3、Liの4桁原子量が、6.941から6.94に変更（通常の原子量は変更なし）
A29: 26 | B29: Fe | C29: 鉄 | D29: Iron | E29: 55.845 | F29: 55.85 | G29: -0.005 | I29: 原子番号9、Fの原子量が、18.998403163から18.998403162に変更（4桁原子量は変更なし）
A30: 27 | B30: Co | C30: コバルト | D30: Cobalt | E30: 58.933194 | F30: 58.93 | G30: 0.003194 | I30: 原子番号21、Scの原子量が、44.955908から44.955907に変更（4桁原子量は変更なし）
A31: 28 | B31: Ni | C31: ニッケル | D31: Nickel | E31: 58.6934 | F31: 58.69 | G31: 0.0034 | I31: 原子番号39、Yの原子量が、88.90584から88.905838に変更（4桁原子量は変更なし）
A32: 29 | B32: Cu | C32: 銅 | D32: Copper | E32: 63.546 | F32: 63.55 | G32: -0.004 | I32: 原子番号65、Tbの原子量が、158.925354(8)から158.925354(7)に変更（4桁原子量は変更なし）
A33: 30 | B33: Zn | C33: 亜鉛 | D33: Zinc | E33: 65.38 | F33: 65.38 | G33: 0 | I33: 原子番号67、Hoの原子量が、164.930328から164.930329に変更（4桁原子量は変更なし）
A34: 31 | B34: Ga | C34: ガリウム | D34: Gallium | E34: 69.723 | F34: 69.72 | G34: 0.003 | I34: 原子番号69、Tmの原子量が、168.934218から168.934219に変更（4桁原子量は変更なし）
A35: 32 | B35: Ge | C35: ゲルマニウム | D35: Germanium | E35: 72.63 | F35: 72.63 | G35: 0 | I35: 原子番号82、Pbの原子量が、207.2から206.14～207.94に変更（4桁原子量は変更なし）
A36: 33 | B36: As | C36: ヒ素 | D36: Arsenic | E36: 74.921595 | F36: 74.92 | G36: 0.001595 | H36: ☆ | I36: 原子量表2022からの変更点
A37: 34 | B37: Se | C37: セレン | D37: Selenium | E37: 78.971 | F37: 78.97 | G37: 0.001 | I37: なし
A38: 35 | B38: Br | C38: 臭素 | D38: Bromine | E38: =(79.901+79.907)/2 -> 79.904 | F38: 79.9 | G38: 0.004 | H38: ☆ | I38: 原子量表2023からの変更点
A39: 36 | B39: Kr | C39: クリプトン | D39: Krypton | E39: 83.798 | F39: 83.8 | G39: -0.002 | I39: なし
A40: 37 | B40: Rb | C40: ルビジウム | D40: Rubidium | E40: 85.4678 | F40: 85.47 | G40: -0.0022
A41: 38 | B41: Sr | C41: ストロンチウム | D41: Strontium | E41: 87.62 | F41: 87.62 | G41: 0
A42: 39 | B42: Y | C42: イットリウム | D42: Yttrium | E42: 88.905838 | F42: 88.91 | G42: -0.004162
A43: 40 | B43: Zr | C43: ジルコニウム | D43: Zirconium | E43: 91.224 | F43: 91.22 | G43: 0.004
A44: 41 | B44: Nb | C44: ニオブ | D44: Niobium | E44: 92.90637 | F44: 92.91 | G44: -0.00363
A45: 42 | B45: Mo | C45: モリブデン | D45: Molybdenum | E45: 95.95 | F45: 95.95 | G45: 0
A46: 43 | B46: Tc | C46: テクネチウム | D46: Technetium | E46: 99 | F46: 99 | G46: 0
A47: 44 | B47: Ru | C47: ルテニウム | D47: Ruthenium | E47: 101.07 | F47: 101.1 | G47: -0.03
A48: 45 | B48: Rh | C48: ロジウム | D48: Rhodium | E48: 102.90549 | F48: 102.9 | G48: 0.00549
A49: 46 | B49: Pd | C49: パラジウム | D49: Palladium | E49: 106.42 | F49: 106.4 | G49: 0.02
A50: 47 | B50: Ag | C50: 銀 | D50: Silver | E50: 107.8682 | F50: 107.9 | G50: -0.0318
A51: 48 | B51: Cd | C51: カドミウム | D51: Cadmium | E51: 112.414 | F51: 112.4 | G51: 0.014
A52: 49 | B52: In | C52: インジウム | D52: Indium | E52: 114.818 | F52: 114.8 | G52: 0.018
A53: 50 | B53: Sn | C53: スズ | D53: Tin | E53: 118.71 | F53: 118.7 | G53: 0.01
A54: 51 | B54: Sb | C54: アンチモン | D54: Antimony | E54: 121.76 | F54: 121.8 | G54: -0.04
A55: 52 | B55: Te | C55: テルル | D55: Tellurium | E55: 127.6 | F55: 127.6 | G55: 0
A56: 53 | B56: I | C56: ヨウ素 | D56: Iodine | E56: 126.90447 | F56: 126.9 | G56: 0.00447
A57: 54 | B57: Xe | C57: キセノン | D57: Xenon | E57: 131.293 | F57: 131.3 | G57: -0.007
A58: 55 | B58: Cs | C58: セシウム | D58: Caesium | E58: 132.905452 | F58: 132.9 | G58: 0.00545196
A59: 56 | B59: Ba | C59: バリウム | D59: Barium | E59: 137.327 | F59: 137.3 | G59: 0.027
A60: 57 | B60: La | C60: ランタン | D60: Lanthanum | E60: 138.90547 | F60: 138.9 | G60: 0.00547
A61: 58 | B61: Ce | C61: セリウム | D61: Cerium | E61: 140.116 | F61: 140.1 | G61: 0.016
A62: 59 | B62: Pr | C62: プラセオジム | D62: Praseodymium | E62: 140.90766 | F62: 140.9 | G62: 0.00766
A63: 60 | B63: Nd | C63: ネオジム | D63: Neodymium | E63: 144.242 | F63: 144.2 | G63: 0.042
A64: 61 | B64: Pm | C64: プロメチウム | D64: Promethium | E64: 145 | F64: 145 | G64: 0
A65: 62 | B65: Sm | C65: サマリウム | D65: Samarium | E65: 150.36 | F65: 150.4 | G65: -0.04
A66: 63 | B66: Eu | C66: ユウロピウム | D66: Europium | E66: 151.964 | F66: 152 | G66: -0.036
A67: 64 | B67: Gd | C67: ガドリニウム | D67: Gadolinium | E67: 157.25 | F67: 157.3 | G67: -0.05
A68: 65 | B68: Tb | C68: テルビウム | D68: Terbium | E68: 158.925354 | F68: 158.9 | G68: 0.025354
A69: 66 | B69: Dy | C69: ジスプロシウム | D69: Dysprosium | E69: 162.5 | F69: 162.5 | G69: =E69-F69 -> 0
A70: 67 | B70: Ho | C70: ホルミウム | D70: Holmium | E70: 164.930329 | F70: 164.9 | G70: 0.030329
A71: 68 | B71: Er | C71: エルビウム | D71: Erbium | E71: 167.259 | F71: 167.3 | G71: -0.041
A72: 69 | B72: Tm | C72: ツリウム | D72: Thulium | E72: 168.934219 | F72: 168.9 | G72: 0.034219
A73: 70 | B73: Yb | C73: イッテルビウム | D73: Ytterbium | E73: 173.045 | F73: 173 | G73: 0.045
A74: 71 | B74: Lu | C74: ルテチウム | D74: Lutetium | E74: 174.9668 | F74: 175 | G74: -0.0332
A75: 72 | B75: Hf | C75: ハフニウム | D75: Hafnium | E75: 178.486 | F75: 178.5 | G75: -0.014
A76: 73 | B76: Ta | C76: タンタル | D76: Tantalum | E76: 180.94788 | F76: 180.9 | G76: 0.04788
A77: 74 | B77: W | C77: タングステン | D77: Tungsten | E77: 183.84 | F77: 183.8 | G77: 0.04
A78: 75 | B78: Re | C78: レニウム | D78: Rhenium | E78: 186.207 | F78: 186.2 | G78: 0.007
A79: 76 | B79: Os | C79: オスミウム | D79: Osmium | E79: 190.23 | F79: 190.2 | G79: 0.03
A80: 77 | B80: Ir | C80: イリジウム | D80: Iridium | E80: 192.217 | F80: 192.2 | G80: 0.017
A81: 78 | B81: Pt | C81: 白金 | D81: Platinum | E81: 195.084 | F81: 195.1 | G81: -0.016
A82: 79 | B82: Au | C82: 金 | D82: Gold | E82: 196.96657 | F82: 197 | G82: -0.03343
A83: 80 | B83: Hg | C83: 水銀 | D83: Mercury | E83: 200.592 | F83: 200.6 | G83: -0.008
A84: 81 | B84: Tl | C84: タリウム | D84: Thallium | E84: =(204.382+204.385)/2 -> 204.3835 | F84: 204.4 | G84: -0.0165
A85: 82 | B85: Pb | C85: 鉛 | D85: Lead | E85: =(206.14+207.94)/2 -> 207.04 | F85: 207.2 | G85: -0.16
A86: 83 | B86: Bi | C86: ビスマス | D86: Bismuth | E86: 208.9804 | F86: 209 | G86: -0.0196
A87: 84 | B87: Po | C87: ポロニウム | D87: Polonium | E87: 210 | F87: 210 | G87: 0
A88: 85 | B88: At | C88: アスタチン | D88: Astatine | E88: 210 | F88: 210 | G88: 0
A89: 86 | B89: Rn | C89: ラドン | D89: Radon | E89: 222 | F89: 222 | G89: 0
A90: 87 | B90: Fr | C90: フランシウム | D90: Francium | E90: 223 | F90: 223 | G90: 0
A91: 88 | B91: Ra | C91: ラジウム | D91: Radium | E91: 226 | F91: 226 | G91: 0
A92: 89 | B92: Ac | C92: アクチニウム | D92: Actinium | E92: 227 | F92: 227 | G92: 0
A93: 90 | B93: Th | C93: トリウム | D93: Thorium | E93: 232.0377 | F93: 232 | G93: 0.0377
A94: 91 | B94: Pa | C94: プロトアクチニウム | D94: Protactinium | E94: 231.03588 | F94: 231 | G94: 0.03588
A95: 92 | B95: U | C95: ウラン | D95: Uranium | E95: 238.02891 | F95: 238 | G95: 0.02891
A96: 93 | B96: Np | C96: ネプツニウム | D96: Neptunium | E96: 237 | F96: 237 | G96: 0
A97: 94 | B97: Pu | C97: プルトニウム | D97: Plutonium | E97: 239 | F97: 239 | G97: 0
A98: 95 | B98: Am | C98: アメリシウム | D98: Americium | E98: 243 | F98: 243 | G98: 0
A99: 96 | B99: Cm | C99: キュリウム | D99: Curium | E99: 247 | F99: 247 | G99: 0
A100: 97 | B100: Bk | C100: バークリウム | D100: Berkelium | E100: 247 | F100: 247 | G100: 0
A101: 98 | B101: Cf | C101: カリホルニウム | D101: Californium | E101: 252 | F101: 252 | G101: 0
A102: 99 | B102: Es | C102: アインスタイニウム | D102: Einsteinium | E102: 252 | F102: 252 | G102: 0
A103: 100 | B103: Fm | C103: フェルミウム | D103: Fermium | E103: 257 | F103: 257 | G103: 0
A104: 101 | B104: Md | C104: メンデレビウム | D104: Mendelevium | E104: 258 | F104: 258 | G104: 0
A105: 102 | B105: No | C105: ノーベリウム | D105: Nobelium | E105: 259 | F105: 259 | G105: 0
A106: 103 | B106: Lr | C106: ローレンシウム | D106: Lawrencium | E106: 262 | F106: 262 | G106: 0
A107: 104 | B107: Rf | C107: ラザホージウム | D107: Rutherfordium | E107: 267 | F107: 267 | G107: 0
A108: 105 | B108: Db | C108: ドブニウム | D108: Dubnium | E108: 268 | F108: 268 | G108: 0
A109: 106 | B109: Sg | C109: シーボーギウム | D109: Seaborgium | E109: 271 | F109: 271 | G109: 0
A110: 107 | B110: Bh | C110: ボーリウム | D110: Bohrium | E110: 272 | F110: 272 | G110: 0
A111: 108 | B111: Hs | C111: ハッシウム | D111: Hassium | E111: 277 | F111: 277 | G111: 0
A112: 109 | B112: Mt | C112: マイトネリウム | D112: Meitnerium | E112: 276 | F112: 276 | G112: 0
A113: 110 | B113: Ds | C113: ダームスタチウム | D113: Darmstadtium | E113: 281 | F113: 281 | G113: 0
A114: 111 | B114: Rg | C114: レントゲニウム | D114: Roentgenium | E114: 280 | F114: 280 | G114: 0
A115: 112 | B115: Cn | C115: コペルニシウム | D115: Copernicium | E115: 285 | F115: 285 | G115: 0
A116: 113 | B116: Nh | C116: ニホニウム | D116: Nihonium | E116: 278 | F116: 278 | G116: 0
A117: 114 | B117: Fl | C117: フレロビウム | D117: Flerovium | E117: 289 | F117: 289 | G117: 0
A118: 115 | B118: Mc | C118: モスコビウム | D118: Moscovium | E118: 289 | F118: 289 | G118: 0
A119: 116 | B119: Lv | C119: リバモリウム | D119: Livermorium | E119: 293 | F119: 293 | G119: 0
A120: 117 | B120: Ts | C120: テネシン | D120: Tennessine | E120: 293 | F120: 293 | G120: 0
A121: 118 | B121: Og | C121: オガネソン | D121: Oganesson | E121: 294 | F121: 294 | G121: 0

Sheet AW2023
C1: 原子量表（2023）
A3: No. | B3: Symbol | C3: 元素名 | D3: Atomic Name | E3: Atomic Weight | F3: 4digit AW | H3: ◎ 原子量表（2023）
A4: 1 | B4: H | C4: 水素 | D4: Hydrogen | E4: =(1.00784+1.00811)/2 -> 1.007975 | F4: 1.008 | I4: https://www.chemistry.or.jp/know/atom_2023.pdf
A5: 2 | B5: He | C5: ヘリウム | D5: Helium | E5: 4.002602 | F5: 4.003
A6: 3 | B6: Li | C6: リチウム | D6: Lithium | E6: =(6.938+6.997)/2 -> 6.9675 | F6: 6.94 | H6: ※ | I6: 出典（上記PDF）によると、H、C、N、Oなど14元素については、
A7: 4 | B7: Be | C7: ベリリウム | D7: Beryllium | E7: 9.0121831 | F7: 9.012 | I7: 同位体存在度の変動があるため、原子量も変動範囲（の下限と上限）で示されている。
A8: 5 | B8: B | C8: ホウ素 | D8: Boron | E8: =(10.806+10.821)/2 -> 10.8135 | F8: 10.81 | I8: これらの元素については、「変動範囲の中間点を原子量の値として使用しないこと」という
A9: 6 | B9: C | C9: 炭素 | D9: Carbon | E9: =(12.0096+12.0116)/2 -> 12.0106 | F9: 12.01 | I9: 注意書きがされている。しかし、ここでは敢えて、これら14元素については変動範囲の中間
A10: 7 | B10: N | C10: 窒素 | D10: Nitrogen | E10: =(14.00643+14.00728)/2 -> 14.006855 | F10: 14.01 | I10: 値を原子量の値として使用しているので、注意されたい（計算の便宜上仕方ないのでは？）
A11: 8 | B11: O | C11: 酸素 | D11: Oxygen | E11: =(15.99903+15.99977)/2 -> 15.9994 | F11: 16
A12: 9 | B12: F | C12: フッ素 | D12: Fluorine | E12: 18.99840316 | F12: 19 | I12: なお、今年の記事では、このような不確かさの取り扱いの例として、エタノールの分子量の
A13: 10 | B13: Ne | C13: ネオン | D13: Neon | E13: 20.1797 | F13: 20.18 | I13: 計算例が示されており、これを見ると、分子量の値としては、それぞれの元素の原子量の
A14: 11 | B14: Na | C14: ナトリウム | D14: Sodium | E14: 22.98976928 | F14: 22.99 | I14: 変動範囲の中央値を用いて求め、その不確かさを原子量の不確かさの分布が長方形分布であ
A15: 12 | B15: Mg | C15: マグネシウム | D15: Magnesium | E15: =(24.304+24.307)/2 -> 24.3055 | F15: 24.31 | I15: るとして、誤差伝搬の式を用いて求めている。
A16: 13 | B16: Al | C16: アルミニウム | D16: Aluminium | E16: 26.9815384 | F16: 26.98
A17: 14 | B17: Si | C17: ケイ素 | D17: Silicon | E17: =(28.084+28.086)/2 -> 28.085 | F17: 28.09 | H17: ＊ | I17: 今後、原子量の値が改定されたときや、使用者の過去の計算との整合性を取るために、独自
A18: 15 | B18: P | C18: リン | D18: Phosphorus | E18: 30.973762 | F18: 30.97 | I18: の原子量の値を使用したいというような場合、この表の原子量の値を適宜、上書きすること
A19: 16 | B19: S | C19: 硫黄 | D19: Sulfur | E19: =(32.059+32.076)/2 -> 32.0675 | F19: 32.07 | I19: により、所望の原子量の値を計算に使用することができる
A20: 17 | B20: Cl | C20: 塩素 | D20: Chlorine | E20: =(35.446+35.457)/2 -> 35.4515 | F20: 35.45 | I20: （その際、セルの位置が変わるとうまく計算できなくなるので、セルの位置は変えずに、
A21: 18 | B21: Ar | C21: アルゴン | D21: Argon | E21: =(39.792+39.963)/2 -> 39.8775 | F21: 39.95 | I21: セルの中身だけを上書きすること）
A22: 19 | B22: K | C22: カリウム | D22: Potassium | E22: 39.0983 | F22: 39.1
A23: 20 | B23: Ca | C23: カルシウム | D23: Calcium | E23: 40.078 | F23: 40.08 | H23: ☆ | I23: 原子量表2019からの変更点
A24: 21 | B24: Sc | C24: スカンジウム | D24: Scandium | E24: 44.955907 | F24: 44.96 | I24: 原子番号72、Hfの原子量が、178.49 から 178.486 に変更（4桁原子量は変更なし）
A25: 22 | B25: Ti | C25: チタン | D25: Titanium | E25: 47.867 | F25: 47.87 | H25: ☆ | I25: 原子量表2020からの変更点
A26: 23 | B26: V | C26: バナジウム | D26: Vanadium | E26: 50.9415 | F26: 50.94 | I26: なし
A27: 24 | B27: Cr | C27: クロム | D27: Chromium | E27: 51.9961 | F27: 52 | H27: ☆ | I27: 原子量表2021からの変更点
A28: 25 | B28: Mn | C28: マンガン | D28: Manganese | E28: 54.938043 | F28: 54.94 | I28: 原子番号3、Liの4桁原子量が、6.941から6.94に変更（通常の原子量は変更なし）
A29: 26 | B29: Fe | C29: 鉄 | D29: Iron | E29: 55.845 | F29: 55.85 | I29: 原子番号9、Fの原子量が、18.998403163から18.998403162に変更（4桁原子量は変更なし）
A30: 27 | B30: Co | C30: コバルト | D30: Cobalt | E30: 58.933194 | F30: 58.93 | I30: 原子番号21、Scの原子量が、44.955908から44.955907に変更（4桁原子量は変更なし）
A31: 28 | B31: Ni | C31: ニッケル | D31: Nickel | E31: 58.6934 | F31: 58.69 | I31: 原子番号39、Yの原子量が、88.90584から88.905838に変更（4桁原子量は変更なし）
A32: 29 | B32: Cu | C32: 銅 | D32: Copper | E32: 63.546 | F32: 63.55 | I32: 原子番号65、Tbの原子量が、158.925354(8)から158.925354(7)に変更（4桁原子量は変更なし）
A33: 30 | B33: Zn | C33: 亜鉛 | D33: Zinc | E33: 65.38 | F33: 65.38 | I33: 原子番号67、Hoの原子量が、164.930328から164.930329に変更（4桁原子量は変更なし）
A34: 31 | B34: Ga | C34: ガリウム | D34: Gallium | E34: 69.723 | F34: 69.72 | I34: 原子番号69、Tmの原子量が、168.934218から168.934219に変更（4桁原子量は変更なし）
A35: 32 | B35: Ge | C35: ゲルマニウム | D35: Germanium | E35: 72.63 | F35: 72.63 | I35: 原子番号82、Pbの原子量が、207.2から206.14～207.94に変更（4桁原子量は変更なし）
A36: 33 | B36: As | C36: ヒ素 | D36: Arsenic | E36: 74.921595 | F36: 74.92 | H36: ☆ | I36: 原子量表2022からの変更点
A37: 34 | B37: Se | C37: セレン | D37: Selenium | E37: 78.971 | F37: 78.97 | I37: なし
A38: 35 | B38: Br | C38: 臭素 | D38: Bromine | E38: =(79.901+79.907)/2 -> 79.904 | F38: 79.9
A39: 36 | B39: Kr | C39: クリプトン | D39: Krypton | E39: 83.798 | F39: 83.8
A40: 37 | B40: Rb | C40: ルビジウム | D40: Rubidium | E40: 85.4678 | F40: 85.47
A41: 38 | B41: Sr | C41: ストロンチウム | D41: Strontium | E41: 87.62 | F41: 87.62
A42: 39 | B42: Y | C42: イットリウム | D42: Yttrium | E42: 88.905838 | F42: 88.91
A43: 40 | B43: Zr | C43: ジルコニウム | D43: Zirconium | E43: 91.224 | F43: 91.22
A44: 41 | B44: Nb | C44: ニオブ | D44: Niobium | E44: 92.90637 | F44: 92.91
A45: 42 | B45: Mo | C45: モリブデン | D45: Molybdenum | E45: 95.95 | F45: 95.95
A46: 43 | B46: Tc | C46: テクネチウム | D46: Technetium | E46: 99 | F46: 99
A47: 44 | B47: Ru | C47: ルテニウム | D47: Ruthenium | E47: 101.07 | F47: 101.1
A48: 45 | B48: Rh | C48: ロジウム | D48: Rhodium | E48: 102.90549 | F48: 102.9
A49: 46 | B49: Pd | C49: パラジウム | D49: Palladium | E49: 106.42 | F49: 106.4
A50: 47 | B50: Ag | C50: 銀 | D50: Silver | E50: 107.8682 | F50: 107.9
A51: 48 | B51: Cd | C51: カドミウム | D51: Cadmium | E51: 112.414 | F51: 112.4
A52: 49 | B52: In | C52: インジウム | D52: Indium | E52: 114.818 | F52: 114.8
A53: 50 | B53: Sn | C53: スズ | D53: Tin | E53: 118.71 | F53: 118.7
A54: 51 | B54: Sb | C54: アンチモン | D54: Antimony | E54: 121.76 | F54: 121.8
A55: 52 | B55: Te | C55: テルル | D55: Tellurium | E55: 127.6 | F55: 127.6
A56: 53 | B56: I | C56: ヨウ素 | D56: Iodine | E56: 126.90447 | F56: 126.9
A57: 54 | B57: Xe | C57: キセノン | D57: Xenon | E57: 131.293 | F57: 131.3
A58: 55 | B58: Cs | C58: セシウム | D58: Caesium | E58: 132.905452 | F58: 132.9
A59: 56 | B59: Ba | C59: バリウム | D59: Barium | E59: 137.327 | F59: 137.3
A60: 57 | B60: La | C60: ランタン | D60: Lanthanum | E60: 138.90547 | F60: 138.9
A61: 58 | B61: Ce | C61: セリウム | D61: Cerium | E61: 140.116 | F61: 140.1
A62: 59 | B62: Pr | C62: プラセオジム | D62: Praseodymium | E62: 140.90766 | F62: 140.9
A63: 60 | B63: Nd | C63: ネオジム | D63: Neodymium | E63: 144.242 | F63: 144.2
A64: 61 | B64: Pm | C64: プロメチウム | D64: Promethium | E64: 145 | F64: 145
A65: 62 | B65: Sm | C65: サマリウム | D65: Samarium | E65: 150.36 | F65: 150.4
A66: 63 | B66: Eu | C66: ユウロピウム | D66: Europium | E66: 151.964 | F66: 152
A67: 64 | B67: Gd | C67: ガドリニウム | D67: Gadolinium | E67: 157.25 | F67: 157.3
A68: 65 | B68: Tb | C68: テルビウム | D68: Terbium | E68: 158.925354 | F68: 158.9
A69: 66 | B69: Dy | C69: ジスプロシウム | D69: Dysprosium | E69: 162.5 | F69: 162.5
A70: 67 | B70: Ho | C70: ホルミウム | D70: Holmium | E70: 164.930329 | F70: 164.9
A71: 68 | B71: Er | C71: エルビウム | D71: Erbium | E71: 167.259 | F71: 167.3
A72: 69 | B72: Tm | C72: ツリウム | D72: Thulium | E72: 168.934219 | F72: 168.9
A73: 70 | B73: Yb | C73: イッテルビウム | D73: Ytterbium | E73: 173.045 | F73: 173
A74: 71 | B74: Lu | C74: ルテチウム | D74: Lutetium | E74: 174.9668 | F74: 175
A75: 72 | B75: Hf | C75: ハフニウム | D75: Hafnium | E75: 178.486 | F75: 178.5
A76: 73 | B76: Ta | C76: タンタル | D76: Tantalum | E76: 180.94788 | F76: 180.9
A77: 74 | B77: W | C77: タングステン | D77: Tungsten | E77: 183.84 | F77: 183.8
A78: 75 | B78: Re | C78: レニウム | D78: Rhenium | E78: 186.207 | F78: 186.2
A79: 76 | B79: Os | C79: オスミウム | D79: Osmium | E79: 190.23 | F79: 190.2
A80: 77 | B80: Ir | C80: イリジウム | D80: Iridium | E80: 192.217 | F80: 192.2
A81: 78 | B81: Pt | C81: 白金 | D81: Platinum | E81: 195.084 | F81: 195.1
A82: 79 | B82: Au | C82: 金 | D82: Gold | E82: 196.96657 | F82: 197
A83: 80 | B83: Hg | C83: 水銀 | D83: Mercury | E83: 200.592 | F83: 200.6
A84: 81 | B84: Tl | C84: タリウム | D84: Thallium | E84: =(204.382+204.385)/2 -> 204.3835 | F84: 204.4
A85: 82 | B85: Pb | C85: 鉛 | D85: Lead | E85: =(206.14+207.94)/2 -> 207.04 | F85: 207.2
A86: 83 | B86: Bi | C86: ビスマス | D86: Bismuth | E86: 208.9804 | F86: 209
A87: 84 | B87: Po | C87: ポロニウム | D87: Polonium | E87: 210 | F87: 210
A88: 85 | B88: At | C88: アスタチン | D88: Astatine | E88: 210 | F88: 210
A89: 86 | B89: Rn | C89: ラドン | D89: Radon | E89: 222 | F89: 222
A90: 87 | B90: Fr | C90: フランシウム | D90: Francium | E90: 223 | F90: 223
A91: 88 | B91: Ra | C91: ラジウム | D91: Radium | E91: 226 | F91: 226
A92: 89 | B92: Ac | C92: アクチニウム | D92: Actinium | E92: 227 | F92: 227
A93: 90 | B93: Th | C93: トリウム | D93: Thorium | E93: 232.0377 | F93: 232
A94: 91 | B94: Pa | C94: プロトアクチニウム | D94: Protactinium | E94: 231.03588 | F94: 231
A95: 92 | B95: U | C95: ウラン | D95: Uranium | E95: 238.02891 | F95: 238
A96: 93 | B96: Np | C96: ネプツニウム | D96: Neptunium | E96: 237 | F96: 237
A97: 94 | B97: Pu | C97: プルトニウム | D97: Plutonium | E97: 239 | F97: 239
A98: 95 | B98: Am | C98: アメリシウム | D98: Americium | E98: 243 | F98: 243
A99: 96 | B99: Cm | C99: キュリウム | D99: Curium | E99: 247 | F99: 247
A100: 97 | B100: Bk | C100: バークリウム | D100: Berkelium | E100: 247 | F100: 247
A101: 98 | B101: Cf | C101: カリホルニウム | D101: Californium | E101: 252 | F101: 252
A102: 99 | B102: Es | C102: アインスタイニウム | D102: Einsteinium | E102: 252 | F102: 252
A103: 100 | B103: Fm | C103: フェルミウム | D103: Fermium | E103: 257 | F103: 257
A104: 101 | B104: Md | C104: メンデレビウム | D104: Mendelevium | E104: 258 | F104: 258
A105: 102 | B105: No | C105: ノーベリウム | D105: Nobelium | E105: 259 | F105: 259
A106: 103 | B106: Lr | C106: ローレンシウム | D106: Lawrencium | E106: 262 | F106: 262
A107: 104 | B107: Rf | C107: ラザホージウム | D107: Rutherfordium | E107: 267 | F107: 267
A108: 105 | B108: Db | C108: ドブニウム | D108: Dubnium | E108: 268 | F108: 268
A109: 106 | B109: Sg | C109: シーボーギウム | D109: Seaborgium | E109: 271 | F109: 271
A110: 107 | B110: Bh | C110: ボーリウム | D110: Bohrium | E110: 272 | F110: 272
A111: 108 | B111: Hs | C111: ハッシウム | D111: Hassium | E111: 277 | F111: 277
A112: 109 | B112: Mt | C112: マイトネリウム | D112: Meitnerium | E112: 276 | F112: 276
A113: 110 | B113: Ds | C113: ダームスタチウム | D113: Darmstadtium | E113: 281 | F113: 281
A114: 111 | B114: Rg | C114: レントゲニウム | D114: Roentgenium | E114: 280 | F114: 280
A115: 112 | B115: Cn | C115: コペルニシウム | D115: Copernicium | E115: 285 | F115: 285
A116: 113 | B116: Nh | C116: ニホニウム | D116: Nihonium | E116: 278 | F116: 278
A117: 114 | B117: Fl | C117: フレロビウム | D117: Flerovium | E117: 289 | F117: 289
A118: 115 | B118: Mc | C118: モスコビウム | D118: Moscovium | E118: 289 | F118: 289
A119: 116 | B119: Lv | C119: リバモリウム | D119: Livermorium | E119: 293 | F119: 293
A120: 117 | B120: Ts | C120: テネシン | D120: Tennessine | E120: 293 | F120: 293
A121: 118 | B121: Og | C121: オガネソン | D121: Oganesson | E121: 294 | F121: 294

Sheet AW2022
C1: 原子量表（2022）
A3: No. | B3: Symbol | C3: 元素名 | D3: Atomic Name | E3: Atomic Weight | F3: 4digit AW | H3: ◎ 原子量表（2022）
A4: 1 | B4: H | C4: 水素 | D4: Hydrogen | E4: =(1.00784+1.00811)/2 -> 1.007975 | F4: 1.008 | I4: https://www.chemistry.or.jp/know/atom_2022.pdf
A5: 2 | B5: He | C5: ヘリウム | D5: Helium | E5: 4.002602 | F5: 4.003
A6: 3 | B6: Li | C6: リチウム | D6: Lithium | E6: =(6.938+6.997)/2 -> 6.9675 | F6: 6.94 | H6: ※ | I6: 出典（化学と工業、 Vol. 75, No. 4, 2022）によると、H、C、N、Oなど14元素については、
A7: 4 | B7: Be | C7: ベリリウム | D7: Beryllium | E7: 9.0121831 | F7: 9.012 | I7: 同位体存在度の変動があるため、原子量も変動範囲（の下限と上限）で示されている。
A8: 5 | B8: B | C8: ホウ素 | D8: Boron | E8: =(10.806+10.821)/2 -> 10.8135 | F8: 10.81 | I8: これらの元素については、「変動範囲の中間点を原子量の値として使用しないこと」という
A9: 6 | B9: C | C9: 炭素 | D9: Carbon | E9: =(12.0096+12.0116)/2 -> 12.0106 | F9: 12.01 | I9: 注意書きがされている。しかし、ここでは敢えて、これら14元素については変動範囲の中間
A10: 7 | B10: N | C10: 窒素 | D10: Nitrogen | E10: =(14.00643+14.00728)/2 -> 14.006855 | F10: 14.01 | I10: 値を原子量の値として使用しているので、注意されたい（計算の便宜上仕方ないのでは？）
A11: 8 | B11: O | C11: 酸素 | D11: Oxygen | E11: =(15.99903+15.99977)/2 -> 15.9994 | F11: 16
A12: 9 | B12: F | C12: フッ素 | D12: Fluorine | E12: 18.99840316 | F12: 19 | I12: なお、今年の記事では、このような不確かさの取り扱いの例として、エタノールの分子量の
A13: 10 | B13: Ne | C13: ネオン | D13: Neon | E13: 20.1797 | F13: 20.18 | I13: 計算例が示されており、これを見ると、分子量の値としては、それぞれの元素の原子量の
A14: 11 | B14: Na | C14: ナトリウム | D14: Sodium | E14: 22.98976928 | F14: 22.99 | I14: 変動範囲の中央値を用いて求め、その不確かさを原子量の不確かさの分布が長方形分布であ
A15: 12 | B15: Mg | C15: マグネシウム | D15: Magnesium | E15: =(24.304+24.307)/2 -> 24.3055 | F15: 24.31 | I15: るとして、誤差伝搬の式を用いて求めている。
A16: 13 | B16: Al | C16: アルミニウム | D16: Aluminium | E16: 26.9815384 | F16: 26.98
A17: 14 | B17: Si | C17: ケイ素 | D17: Silicon | E17: =(28.084+28.086)/2 -> 28.085 | F17: 28.09 | H17: ＊ | I17: 今後、原子量の値が改定されたときや、使用者の過去の計算との整合性を取るために、独自
A18: 15 | B18: P | C18: リン | D18: Phosphorus | E18: 30.973762 | F18: 30.97 | I18: の原子量の値を使用したいというような場合、この表の原子量の値を適宜、上書きすること
A19: 16 | B19: S | C19: 硫黄 | D19: Sulfur | E19: =(32.059+32.076)/2 -> 32.0675 | F19: 32.07 | I19: により、所望の原子量の値を計算に使用することができる
A20: 17 | B20: Cl | C20: 塩素 | D20: Chlorine | E20: =(35.446+35.457)/2 -> 35.4515 | F20: 35.45 | I20: （その際、セルの位置が変わるとうまく計算できなくなるので、セルの位置は変えずに、
A21: 18 | B21: Ar | C21: アルゴン | D21: Argon | E21: =(39.792+39.963)/2 -> 39.8775 | F21: 39.95 | I21: セルの中身だけを上書きすること）
A22: 19 | B22: K | C22: カリウム | D22: Potassium | E22: 39.0983 | F22: 39.1
A23: 20 | B23: Ca | C23: カルシウム | D23: Calcium | E23: 40.078 | F23: 40.08 | H23: ☆ | I23: 原子量表2019からの変更点
A24: 21 | B24: Sc | C24: スカンジウム | D24: Scandium | E24: 44.955907 | F24: 44.96 | I24: 原子番号72、Hfの原子量が、178.49 から 178.486 に変更（4桁原子量は変更なし）
A25: 22 | B25: Ti | C25: チタン | D25: Titanium | E25: 47.867 | F25: 47.87 | H25: ☆ | I25: 原子量表2020からの変更点
A26: 23 | B26: V | C26: バナジウム | D26: Vanadium | E26: 50.9415 | F26: 50.94 | I26: なし
A27: 24 | B27: Cr | C27: クロム | D27: Chromium | E27: 51.9961 | F27: 52 | H27: ☆ | I27: 原子量表2021からの変更点
A28: 25 | B28: Mn | C28: マンガン | D28: Manganese | E28: 54.938043 | F28: 54.94 | I28: 原子番号3、Liの4桁原子量が、6.941から6.94に変更（通常の原子量は変更なし）
A29: 26 | B29: Fe | C29: 鉄 | D29: Iron | E29: 55.845 | F29: 55.85 | I29: 原子番号9、Fの原子量が、18.998403163から18.998403162に変更（4桁原子量は変更なし）
A30: 27 | B30: Co | C30: コバルト | D30: Cobalt | E30: 58.933194 | F30: 58.93 | I30: 原子番号21、Scの原子量が、44.955908から44.955907に変更（4桁原子量は変更なし）
A31: 28 | B31: Ni | C31: ニッケル | D31: Nickel | E31: 58.6934 | F31: 58.69 | I31: 原子番号39、Yの原子量が、88.90584から88.905838に変更（4桁原子量は変更なし）
A32: 29 | B32: Cu | C32: 銅 | D32: Copper | E32: 63.546 | F32: 63.55 | I32: 原子番号65、Tbの原子量が、158.925354(8)から158.925354(7)に変更（4桁原子量は変更なし）
A33: 30 | B33: Zn | C33: 亜鉛 | D33: Zinc | E33: 65.38 | F33: 65.38 | I33: 原子番号67、Hoの原子量が、164.930328から164.930329に変更（4桁原子量は変更なし）
A34: 31 | B34: Ga | C34: ガリウム | D34: Gallium | E34: 69.723 | F34: 69.72 | I34: 原子番号69、Tmの原子量が、168.934218から168.934219に変更（4桁原子量は変更なし）
A35: 32 | B35: Ge | C35: ゲルマニウム | D35: Germanium | E35: 72.63 | F35: 72.63 | I35: 原子番号82、Pbの原子量が、207.2から206.14～207.94に変更（4桁原子量は変更なし）
A36: 33 | B36: As | C36: ヒ素 | D36: Arsenic | E36: 74.921595 | F36: 74.92
A37: 34 | B37: Se | C37: セレン | D37: Selenium | E37: 78.971 | F37: 78.97
A38: 35 | B38: Br | C38: 臭素 | D38: Bromine | E38: =(79.901+79.907)/2 -> 79.904 | F38: 79.9
A39: 36 | B39: Kr | C39: クリプトン | D39: Krypton | E39: 83.798 | F39: 83.8
A40: 37 | B40: Rb | C40: ルビジウム | D40: Rubidium | E40: 85.4678 | F40: 85.47
A41: 38 | B41: Sr | C41: ストロンチウム | D41: Strontium | E41: 87.62 | F41: 87.62
A42: 39 | B42: Y | C42: イットリウム | D42: Yttrium | E42: 88.905838 | F42: 88.91
A43: 40 | B43: Zr | C43: ジルコニウム | D43: Zirconium | E43: 91.224 | F43: 91.22
A44: 41 | B44: Nb | C44: ニオブ | D44: Niobium | E44: 92.90637 | F44: 92.91
A45: 42 | B45: Mo | C45: モリブデン | D45: Molybdenum | E45: 95.95 | F45: 95.95
A46: 43 | B46: Tc | C46: テクネチウム | D46: Technetium | E46: 99 | F46: 99
A47: 44 | B47: Ru | C47: ルテニウム | D47: Ruthenium | E47: 101.07 | F47: 101.1
A48: 45 | B48: Rh | C48: ロジウム | D48: Rhodium | E48: 102.90549 | F48: 102.9
A49: 46 | B49: Pd | C49: パラジウム | D49: Palladium | E49: 106.42 | F49: 106.4
A50: 47 | B50: Ag | C50: 銀 | D50: Silver | E50: 107.8682 | F50: 107.9
A51: 48 | B51: Cd | C51: カドミウム | D51: Cadmium | E51: 112.414 | F51: 112.4
A52: 49 | B52: In | C52: インジウム | D52: Indium | E52: 114.818 | F52: 114.8
A53: 50 | B53: Sn | C53: スズ | D53: Tin | E53: 118.71 | F53: 118.7
A54: 51 | B54: Sb | C54: アンチモン | D54: Antimony | E54: 121.76 | F54: 121.8
A55: 52 | B55: Te | C55: テルル | D55: Tellurium | E55: 127.6 | F55: 127.6
A56: 53 | B56: I | C56: ヨウ素 | D56: Iodine | E56: 126.90447 | F56: 126.9
A57: 54 | B57: Xe | C57: キセノン | D57: Xenon | E57: 131.293 | F57: 131.3
A58: 55 | B58: Cs | C58: セシウム | D58: Caesium | E58: 132.905452 | F58: 132.9
A59: 56 | B59: Ba | C59: バリウム | D59: Barium | E59: 137.327 | F59: 137.3
A60: 57 | B60: La | C60: ランタン | D60: Lanthanum | E60: 138.90547 | F60: 138.9
A61: 58 | B61: Ce | C61: セリウム | D61: Cerium | E61: 140.116 | F61: 140.1
A62: 59 | B62: Pr | C62: プラセオジム | D62: Praseodymium | E62: 140.90766 | F62: 140.9
A63: 60 | B63: Nd | C63: ネオジム | D63: Neodymium | E63: 144.242 | F63: 144.2
A64: 61 | B64: Pm | C64: プロメチウム | D64: Promethium | E64: 145 | F64: 145
A65: 62 | B65: Sm | C65: サマリウム | D65: Samarium | E65: 150.36 | F65: 150.4
A66: 63 | B66: Eu | C66: ユウロピウム | D66: Europium | E66: 151.964 | F66: 152
A67: 64 | B67: Gd | C67: ガドリニウム | D67: Gadolinium | E67: 157.25 | F67: 157.3
A68: 65 | B68: Tb | C68: テルビウム | D68: Terbium | E68: 158.925354 | F68: 158.9
A69: 66 | B69: Dy | C69: ジスプロシウム | D69: Dysprosium | E69: 162.5 | F69: 162.5
A70: 67 | B70: Ho | C70: ホルミウム | D70: Holmium | E70: 164.930329 | F70: 164.9
A71: 68 | B71: Er | C71: エルビウム | D71: Erbium | E71: 167.259 | F71: 167.3
A72: 69 | B72: Tm | C72: ツリウム | D72: Thulium | E72: 168.934219 | F72: 168.9
A73: 70 | B73: Yb | C73: イッテルビウム | D73: Ytterbium | E73: 173.045 | F73: 173
A74: 71 | B74: Lu | C74: ルテチウム | D74: Lutetium | E74: 174.9668 | F74: 175
A75: 72 | B75: Hf | C75: ハフニウム | D75: Hafnium | E75: 178.486 | F75: 178.5
A76: 73 | B76: Ta | C76: タンタル | D76: Tantalum | E76: 180.94788 | F76: 180.9
A77: 74 | B77: W | C77: タングステン | D77: Tungsten | E77: 183.84 | F77: 183.8
A78: 75 | B78: Re | C78: レニウム | D78: Rhenium | E78: 186.207 | F78: 186.2
A79: 76 | B79: Os | C79: オスミウム | D79: Osmium | E79: 190.23 | F79: 190.2
A80: 77 | B80: Ir | C80: イリジウム | D80: Iridium | E80: 192.217 | F80: 192.2
A81: 78 | B81: Pt | C81: 白金 | D81: Platinum | E81: 195.084 | F81: 195.1
A82: 79 | B82: Au | C82: 金 | D82: Gold | E82: 196.96657 | F82: 197
A83: 80 | B83: Hg | C83: 水銀 | D83: Mercury | E83: 200.592 | F83: 200.6
A84: 81 | B84: Tl | C84: タリウム | D84: Thallium | E84: =(204.382+204.385)/2 -> 204.3835 | F84: 204.4
A85: 82 | B85: Pb | C85: 鉛 | D85: Lead | E85: =(206.14+207.94)/2 -> 207.04 | F85: 207.2
A86: 83 | B86: Bi | C86: ビスマス | D86: Bismuth | E86: 208.9804 | F86: 209
A87: 84 | B87: Po | C87: ポロニウム | D87: Polonium | E87: 210 | F87: 210
A88: 85 | B88: At | C88: アスタチン | D88: Astatine | E88: 210 | F88: 210
A89: 86 | B89: Rn | C89: ラドン | D89: Radon | E89: 222 | F89: 222
A90: 87 | B90: Fr | C90: フランシウム | D90: Francium | E90: 223 | F90: 223
A91: 88 | B91: Ra | C91: ラジウム | D91: Radium | E91: 226 | F91: 226
A92: 89 | B92: Ac | C92: アクチニウム | D92: Actinium | E92: 227 | F92: 227
A93: 90 | B93: Th | C93: トリウム | D93: Thorium | E93: 232.0377 | F93: 232
A94: 91 | B94: Pa | C94: プロトアクチニウム | D94: Protactinium | E94: 231.03588 | F94: 231
A95: 92 | B95: U | C95: ウラン | D95: Uranium | E95: 238.02891 | F95: 238
A96: 93 | B96: Np | C96: ネプツニウム | D96: Neptunium | E96: 237 | F96: 237
A97: 94 | B97: Pu | C97: プルトニウム | D97: Plutonium | E97: 239 | F97: 239
A98: 95 | B98: Am | C98: アメリシウム | D98: Americium | E98: 243 | F98: 243
A99: 96 | B99: Cm | C99: キュリウム | D99: Curium | E99: 247 | F99: 247
A100: 97 | B100: Bk | C100: バークリウム | D100: Berkelium | E100: 247 | F100: 247
A101: 98 | B101: Cf | C101: カリホルニウム | D101: Californium | E101: 252 | F101: 252
A102: 99 | B102: Es | C102: アインスタイニウム | D102: Einsteinium | E102: 252 | F102: 252
A103: 100 | B103: Fm | C103: フェルミウム | D103: Fermium | E103: 257 | F103: 257
A104: 101 | B104: Md | C104: メンデレビウム | D104: Mendelevium | E104: 258 | F104: 258
A105: 102 | B105: No | C105: ノーベリウム | D105: Nobelium | E105: 259 | F105: 259
A106: 103 | B106: Lr | C106: ローレンシウム | D106: Lawrencium | E106: 262 | F106: 262
A107: 104 | B107: Rf | C107: ラザホージウム | D107: Rutherfordium | E107: 267 | F107: 267
A108: 105 | B108: Db | C108: ドブニウム | D108: Dubnium | E108: 268 | F108: 268
A109: 106 | B109: Sg | C109: シーボーギウム | D109: Seaborgium | E109: 271 | F109: 271
A110: 107 | B110: Bh | C110: ボーリウム | D110: Bohrium | E110: 272 | F110: 272
A111: 108 | B111: Hs | C111: ハッシウム | D111: Hassium | E111: 277 | F111: 277
A112: 109 | B112: Mt | C112: マイトネリウム | D112: Meitnerium | E112: 276 | F112: 276
A113: 110 | B113: Ds | C113: ダームスタチウム | D113: Darmstadtium | E113: 281 | F113: 281
A114: 111 | B114: Rg | C114: レントゲニウム | D114: Roentgenium | E114: 280 | F114: 280
A115: 112 | B115: Cn | C115: コペルニシウム | D115: Copernicium | E115: 285 | F115: 285
A116: 113 | B116: Nh | C116: ニホニウム | D116: Nihonium | E116: 278 | F116: 278
A117: 114 | B117: Fl | C117: フレロビウム | D117: Flerovium | E117: 289 | F117: 289
A118: 115 | B118: Mc | C118: モスコビウム | D118: Moscovium | E118: 289 | F118: 289
A119: 116 | B119: Lv | C119: リバモリウム | D119: Livermorium | E119: 293 | F119: 293
A120: 117 | B120: Ts | C120: テネシン | D120: Tennessine | E120: 293 | F120: 293
A121: 118 | B121: Og | C121: オガネソン | D121: Oganesson | E121: 294 | F121: 294

Sheet AW2021
C1: 原子量表（2021） | D1: （化学と工業, Vol. 74, No.4, 2021）
A3: No. | B3: Symbol | C3: 元素名 | D3: Atomic Name | E3: Atomic Weight | F3: 4digit AW | H3: ◎ 原子量表（2021）
A4: 1 | B4: H | C4: 水素 | D4: Hydrogen | E4: =(1.00784+1.00811)/2 -> 1.007975 | F4: 1.008 | I4: http://www.chemistry.or.jp/activity/atomictable2021.pdf
A5: 2 | B5: He | C5: ヘリウム | D5: Helium | E5: 4.002602 | F5: 4.003
A6: 3 | B6: Li | C6: リチウム | D6: Lithium | E6: =(6.938+6.997)/2 -> 6.9675 | F6: 6.941 | H6: ※ | I6: 出典（化学と工業、 Vol. 74, No. 4, 2021）によると、H、C、N、Oなど13元素については、
A7: 4 | B7: Be | C7: ベリリウム | D7: Beryllium | E7: 9.0121831 | F7: 9.012 | I7: 同位体存在度の変動があるため、原子量も変動範囲（の下限と上限）で示されている。
A8: 5 | B8: B | C8: ホウ素 | D8: Boron | E8: =(10.806+10.821)/2 -> 10.8135 | F8: 10.81 | I8: これらの元素については、「変動範囲の中間点を原子量の値として使用しないこと」という
A9: 6 | B9: C | C9: 炭素 | D9: Carbon | E9: =(12.0096+12.0116)/2 -> 12.0106 | F9: 12.01 | I9: 注意書きがされている。しかし、ここでは敢えて、これら13元素については変動範囲の中間
A10: 7 | B10: N | C10: 窒素 | D10: Nitrogen | E10: =(14.00643+14.00728)/2 -> 14.006855 | F10: 14.01 | I10: 値を原子量の値として使用しているので、注意されたい（計算の便宜上仕方ないのでは？）
A11: 8 | B11: O | C11: 酸素 | D11: Oxygen | E11: =(15.99903+15.99977)/2 -> 15.9994 | F11: 16
A12: 9 | B12: F | C12: フッ素 | D12: Fluorine | E12: 18.99840316 | F12: 19 | H12: ＊ | I12: 今後、原子量の値が改定されたときや、使用者の過去の計算との整合性を取るために、独自
A13: 10 | B13: Ne | C13: ネオン | D13: Neon | E13: 20.1797 | F13: 20.18 | I13: の原子量の値を使用したいというような場合、この表の原子量の値を適宜、上書きすること
A14: 11 | B14: Na | C14: ナトリウム | D14: Sodium | E14: 22.98976928 | F14: 22.99 | I14: により、所望の原子量の値を計算に使用することができる
A15: 12 | B15: Mg | C15: マグネシウム | D15: Magnesium | E15: =(24.304+24.307)/2 -> 24.3055 | F15: 24.31 | I15: （その際、セルの位置が変わるとうまく計算できなくなるので、セルの位置は変えずに、
A16: 13 | B16: Al | C16: アルミニウム | D16: Aluminium | E16: 26.9815384 | F16: 26.98 | I16: セルの中身だけを上書きすること）
A17: 14 | B17: Si | C17: ケイ素 | D17: Silicon | E17: =(28.084+28.086)/2 -> 28.085 | F17: 28.09
A18: 15 | B18: P | C18: リン | D18: Phosphorus | E18: 30.973762 | F18: 30.97 | H18: ☆ | I18: 原子量表2019からの変更点
A19: 16 | B19: S | C19: 硫黄 | D19: Sulfur | E19: =(32.059+32.076)/2 -> 32.0675 | F19: 32.07 | I19: 原子番号72、Hfの原子量が、178.49 から 178.486 に変更（4桁原子量は変更なし）
A20: 17 | B20: Cl | C20: 塩素 | D20: Chlorine | E20: =(35.446+35.457)/2 -> 35.4515 | F20: 35.45 | H20: ☆ | I20: 原子量表2020からの変更点
A21: 18 | B21: Ar | C21: アルゴン | D21: Argon | E21: =(39.792+39.963)/2 -> 39.8775 | F21: 39.95 | I21: なし
A22: 19 | B22: K | C22: カリウム | D22: Potassium | E22: 39.0983 | F22: 39.1
A23: 20 | B23: Ca | C23: カルシウム | D23: Calcium | E23: 40.078 | F23: 40.08
A24: 21 | B24: Sc | C24: スカンジウム | D24: Scandium | E24: 44.955908 | F24: 44.96
A25: 22 | B25: Ti | C25: チタン | D25: Titanium | E25: 47.867 | F25: 47.87
A26: 23 | B26: V | C26: バナジウム | D26: Vanadium | E26: 50.9415 | F26: 50.94
A27: 24 | B27: Cr | C27: クロム | D27: Chromium | E27: 51.9961 | F27: 52
A28: 25 | B28: Mn | C28: マンガン | D28: Manganese | E28: 54.938043 | F28: 54.94
A29: 26 | B29: Fe | C29: 鉄 | D29: Iron | E29: 55.845 | F29: 55.85
A30: 27 | B30: Co | C30: コバルト | D30: Cobalt | E30: 58.933194 | F30: 58.93
A31: 28 | B31: Ni | C31: ニッケル | D31: Nickel | E31: 58.6934 | F31: 58.69
A32: 29 | B32: Cu | C32: 銅 | D32: Copper | E32: 63.546 | F32: 63.55
A33: 30 | B33: Zn | C33: 亜鉛 | D33: Zinc | E33: 65.38 | F33: 65.38
A34: 31 | B34: Ga | C34: ガリウム | D34: Gallium | E34: 69.723 | F34: 69.72
A35: 32 | B35: Ge | C35: ゲルマニウム | D35: Germanium | E35: 72.63 | F35: 72.63
A36: 33 | B36: As | C36: ヒ素 | D36: Arsenic | E36: 74.921595 | F36: 74.92
A37: 34 | B37: Se | C37: セレン | D37: Selenium | E37: 78.971 | F37: 78.97
A38: 35 | B38: Br | C38: 臭素 | D38: Bromine | E38: =(79.901+79.907)/2 -> 79.904 | F38: 79.9
A39: 36 | B39: Kr | C39: クリプトン | D39: Krypton | E39: 83.798 | F39: 83.8
A40: 37 | B40: Rb | C40: ルビジウム | D40: Rubidium | E40: 85.4678 | F40: 85.47
A41: 38 | B41: Sr | C41: ストロンチウム | D41: Strontium | E41: 87.62 | F41: 87.62
A42: 39 | B42: Y | C42: イットリウム | D42: Yttrium | E42: 88.90584 | F42: 88.91
A43: 40 | B43: Zr | C43: ジルコニウム | D43: Zirconium | E43: 91.224 | F43: 91.22
A44: 41 | B44: Nb | C44: ニオブ | D44: Niobium | E44: 92.90637 | F44: 92.91
A45: 42 | B45: Mo | C45: モリブデン | D45: Molybdenum | E45: 95.95 | F45: 95.95
A46: 43 | B46: Tc | C46: テクネチウム | D46: Technetium | E46: 99 | F46: 99
A47: 44 | B47: Ru | C47: ルテニウム | D47: Ruthenium | E47: 101.07 | F47: 101.1
A48: 45 | B48: Rh | C48: ロジウム | D48: Rhodium | E48: 102.90549 | F48: 102.9
A49: 46 | B49: Pd | C49: パラジウム | D49: Palladium | E49: 106.42 | F49: 106.4
A50: 47 | B50: Ag | C50: 銀 | D50: Silver | E50: 107.8682 | F50: 107.9
A51: 48 | B51: Cd | C51: カドミウム | D51: Cadmium | E51: 112.414 | F51: 112.4
A52: 49 | B52: In | C52: インジウム | D52: Indium | E52: 114.818 | F52: 114.8
A53: 50 | B53: Sn | C53: スズ | D53: Tin | E53: 118.71 | F53: 118.7
A54: 51 | B54: Sb | C54: アンチモン | D54: Antimony | E54: 121.76 | F54: 121.8
A55: 52 | B55: Te | C55: テルル | D55: Tellurium | E55: 127.6 | F55: 127.6
A56: 53 | B56: I | C56: ヨウ素 | D56: Iodine | E56: 126.90447 | F56: 126.9
A57: 54 | B57: Xe | C57: キセノン | D57: Xenon | E57: 131.293 | F57: 131.3
A58: 55 | B58: Cs | C58: セシウム | D58: Caesium | E58: 132.905452 | F58: 132.9
A59: 56 | B59: Ba | C59: バリウム | D59: Barium | E59: 137.327 | F59: 137.3
A60: 57 | B60: La | C60: ランタン | D60: Lanthanum | E60: 138.90547 | F60: 138.9
A61: 58 | B61: Ce | C61: セリウム | D61: Cerium | E61: 140.116 | F61: 140.1
A62: 59 | B62: Pr | C62: プラセオジム | D62: Praseodymium | E62: 140.90766 | F62: 140.9
A63: 60 | B63: Nd | C63: ネオジム | D63: Neodymium | E63: 144.242 | F63: 144.2
A64: 61 | B64: Pm | C64: プロメチウム | D64: Promethium | E64: 145 | F64: 145
A65: 62 | B65: Sm | C65: サマリウム | D65: Samarium | E65: 150.36 | F65: 150.4
A66: 63 | B66: Eu | C66: ユウロピウム | D66: Europium | E66: 151.964 | F66: 152
A67: 64 | B67: Gd | C67: ガドリニウム | D67: Gadolinium | E67: 157.25 | F67: 157.3
A68: 65 | B68: Tb | C68: テルビウム | D68: Terbium | E68: 158.925354 | F68: 158.9
A69: 66 | B69: Dy | C69: ジスプロシウム | D69: Dysprosium | E69: 162.5 | F69: 162.5
A70: 67 | B70: Ho | C70: ホルミウム | D70: Holmium | E70: 164.930328 | F70: 164.9
A71: 68 | B71: Er | C71: エルビウム | D71: Erbium | E71: 167.259 | F71: 167.3
A72: 69 | B72: Tm | C72: ツリウム | D72: Thulium | E72: 168.934218 | F72: 168.9
A73: 70 | B73: Yb | C73: イッテルビウム | D73: Ytterbium | E73: 173.045 | F73: 173
A74: 71 | B74: Lu | C74: ルテチウム | D74: Lutetium | E74: 174.9668 | F74: 175
A75: 72 | B75: Hf | C75: ハフニウム | D75: Hafnium | E75: 178.486 | F75: 178.5
A76: 73 | B76: Ta | C76: タンタル | D76: Tantalum | E76: 180.94788 | F76: 180.9
A77: 74 | B77: W | C77: タングステン | D77: Tungsten | E77: 183.84 | F77: 183.8
A78: 75 | B78: Re | C78: レニウム | D78: Rhenium | E78: 186.207 | F78: 186.2
A79: 76 | B79: Os | C79: オスミウム | D79: Osmium | E79: 190.23 | F79: 190.2
A80: 77 | B80: Ir | C80: イリジウム | D80: Iridium | E80: 192.217 | F80: 192.2
A81: 78 | B81: Pt | C81: 白金 | D81: Platinum | E81: 195.084 | F81: 195.1
A82: 79 | B82: Au | C82: 金 | D82: Gold | E82: 196.96657 | F82: 197
A83: 80 | B83: Hg | C83: 水銀 | D83: Mercury | E83: 200.592 | F83: 200.6
A84: 81 | B84: Tl | C84: タリウム | D84: Thallium | E84: =(204.382+204.385)/2 -> 204.3835 | F84: 204.4
A85: 82 | B85: Pb | C85: 鉛 | D85: Lead | E85: 207.2 | F85: 207.2
A86: 83 | B86: Bi | C86: ビスマス | D86: Bismuth | E86: 208.9804 | F86: 209
A87: 84 | B87: Po | C87: ポロニウム | D87: Polonium | E87: 210 | F87: 210
A88: 85 | B88: At | C88: アスタチン | D88: Astatine | E88: 210 | F88: 210
A89: 86 | B89: Rn | C89: ラドン | D89: Radon | E89: 222 | F89: 222
A90: 87 | B90: Fr | C90: フランシウム | D90: Francium | E90: 223 | F90: 223
A91: 88 | B91: Ra | C91: ラジウム | D91: Radium | E91: 226 | F91: 226
A92: 89 | B92: Ac | C92: アクチニウム | D92: Actinium | E92: 227 | F92: 227
A93: 90 | B93: Th | C93: トリウム | D93: Thorium | E93: 232.0377 | F93: 232
A94: 91 | B94: Pa | C94: プロトアクチニウム | D94: Protactinium | E94: 231.03588 | F94: 231
A95: 92 | B95: U | C95: ウラン | D95: Uranium | E95: 238.02891 | F95: 238
A96: 93 | B96: Np | C96: ネプツニウム | D96: Neptunium | E96: 237 | F96: 237
A97: 94 | B97: Pu | C97: プルトニウム | D97: Plutonium | E97: 239 | F97: 239
A98: 95 | B98: Am | C98: アメリシウム | D98: Americium | E98: 243 | F98: 243
A99: 96 | B99: Cm | C99: キュリウム | D99: Curium | E99: 247 | F99: 247
A100: 97 | B100: Bk | C100: バークリウム | D100: Berkelium | E100: 247 | F100: 247
A101: 98 | B101: Cf | C101: カリホルニウム | D101: Californium | E101: 252 | F101: 252
A102: 99 | B102: Es | C102: アインスタイニウム | D102: Einsteinium | E102: 252 | F102: 252
A103: 100 | B103: Fm | C103: フェルミウム | D103: Fermium | E103: 257 | F103: 257
A104: 101 | B104: Md | C104: メンデレビウム | D104: Mendelevium | E104: 258 | F104: 258
A105: 102 | B105: No | C105: ノーベリウム | D105: Nobelium | E105: 259 | F105: 259
A106: 103 | B106: Lr | C106: ローレンシウム | D106: Lawrencium | E106: 262 | F106: 262
A107: 104 | B107: Rf | C107: ラザホージウム | D107: Rutherfordium | E107: 267 | F107: 267
A108: 105 | B108: Db | C108: ドブニウム | D108: Dubnium | E108: 268 | F108: 268
A109: 106 | B109: Sg | C109: シーボーギウム | D109: Seaborgium | E109: 271 | F109: 271
A110: 107 | B110: Bh | C110: ボーリウム | D110: Bohrium | E110: 272 | F110: 272
A111: 108 | B111: Hs | C111: ハッシウム | D111: Hassium | E111: 277 | F111: 277
A112: 109 | B112: Mt | C112: マイトネリウム | D112: Meitnerium | E112: 276 | F112: 276
A113: 110 | B113: Ds | C113: ダームスタチウム | D113: Darmstadtium | E113: 281 | F113: 281
A114: 111 | B114: Rg | C114: レントゲニウム | D114: Roentgenium | E114: 280 | F114: 280
A115: 112 | B115: Cn | C115: コペルニシウム | D115: Copernicium | E115: 285 | F115: 285
A116: 113 | B116: Nh | C116: ニホニウム | D116: Nihonium | E116: 278 | F116: 278
A117: 114 | B117: Fl | C117: フレロビウム | D117: Flerovium | E117: 289 | F117: 289
A118: 115 | B118: Mc | C118: モスコビウム | D118: Moscovium | E118: 289 | F118: 289
A119: 116 | B119: Lv | C119: リバモリウム | D119: Livermorium | E119: 293 | F119: 293
A120: 117 | B120: Ts | C120: テネシン | D120: Tennessine | E120: 293 | F120: 293
A121: 118 | B121: Og | C121: オガネソン | D121: Oganesson | E121: 294 | F121: 294

Sheet AW2020
C1: 原子量表（2020） | D1: （化学と工業, Vol. 73, No.4, 2020）
A3: No. | B3: Symbol | C3: 元素名 | D3: Atomic Name | E3: Atomic Weight | F3: 4digit AW | H3: ◎ 原子量表（2020）
A4: 1 | B4: H | C4: 水素 | D4: Hydrogen | E4: =(1.00784+1.00811)/2 -> 1.007975 | F4: 1.008 | I4: http://www.chemistry.or.jp/activity/atomictable2020.pdf
A5: 2 | B5: He | C5: ヘリウム | D5: Helium | E5: 4.002602 | F5: 4.003
A6: 3 | B6: Li | C6: リチウム | D6: Lithium | E6: =(6.938+6.997)/2 -> 6.9675 | F6: 6.941 | H6: ※ | I6: 出典（化学と工業、 Vol. 73, No. 4, 2020）によると、H、C、N、Oなど13元素については、
A7: 4 | B7: Be | C7: ベリリウム | D7: Beryllium | E7: 9.0121831 | F7: 9.012 | I7: 同位体存在度の変動があるため、原子量も変動範囲（の下限と上限）で示されている。
A8: 5 | B8: B | C8: ホウ素 | D8: Boron | E8: =(10.806+10.821)/2 -> 10.8135 | F8: 10.81 | I8: これらの元素については、「変動範囲の中間点を原子量の値として使用しないこと」という
A9: 6 | B9: C | C9: 炭素 | D9: Carbon | E9: =(12.0096+12.0116)/2 -> 12.0106 | F9: 12.01 | I9: 注意書きがされている。しかし、ここでは敢えて、これら13元素については変動範囲の中間
A10: 7 | B10: N | C10: 窒素 | D10: Nitrogen | E10: =(14.00643+14.00728)/2 -> 14.006855 | F10: 14.01 | I10: 値を原子量の値として使用しているので、注意されたい（計算の便宜上仕方ないのでは？）
A11: 8 | B11: O | C11: 酸素 | D11: Oxygen | E11: =(15.99903+15.99977)/2 -> 15.9994 | F11: 16
A12: 9 | B12: F | C12: フッ素 | D12: Fluorine | E12: 18.99840316 | F12: 19 | H12: ＊ | I12: 今後、原子量の値が改定されたときや、使用者の過去の計算との整合性を取るために、独自
A13: 10 | B13: Ne | C13: ネオン | D13: Neon | E13: 20.1797 | F13: 20.18 | I13: の原子量の値を使用したいというような場合、この表の原子量の値を適宜、上書きすること
A14: 11 | B14: Na | C14: ナトリウム | D14: Sodium | E14: 22.98976928 | F14: 22.99 | I14: により、所望の原子量の値を計算に使用することができる
A15: 12 | B15: Mg | C15: マグネシウム | D15: Magnesium | E15: =(24.304+24.307)/2 -> 24.3055 | F15: 24.31 | I15: （その際、セルの位置が変わるとうまく計算できなくなるので、セルの位置は変えずに、
A16: 13 | B16: Al | C16: アルミニウム | D16: Aluminium | E16: 26.9815384 | F16: 26.98 | I16: セルの中身だけを上書きすること）
A17: 14 | B17: Si | C17: ケイ素 | D17: Silicon | E17: =(28.084+28.086)/2 -> 28.085 | F17: 28.09
A18: 15 | B18: P | C18: リン | D18: Phosphorus | E18: 30.973762 | F18: 30.97 | H18: ☆ | I18: 原子量表2019からの変更点
A19: 16 | B19: S | C19: 硫黄 | D19: Sulfur | E19: =(32.059+32.076)/2 -> 32.0675 | F19: 32.07 | I19: 原子番号72、Hfの原子量が、178.49 から 178.486 に変更（4桁原子量は変更なし）
A20: 17 | B20: Cl | C20: 塩素 | D20: Chlorine | E20: =(35.446+35.457)/2 -> 35.4515 | F20: 35.45
A21: 18 | B21: Ar | C21: アルゴン | D21: Argon | E21: =(39.792+39.963)/2 -> 39.8775 | F21: 39.95
A22: 19 | B22: K | C22: カリウム | D22: Potassium | E22: 39.0983 | F22: 39.1
A23: 20 | B23: Ca | C23: カルシウム | D23: Calcium | E23: 40.078 | F23: 40.08
A24: 21 | B24: Sc | C24: スカンジウム | D24: Scandium | E24: 44.955908 | F24: 44.96
A25: 22 | B25: Ti | C25: チタン | D25: Titanium | E25: 47.867 | F25: 47.87
A26: 23 | B26: V | C26: バナジウム | D26: Vanadium | E26: 50.9415 | F26: 50.94
A27: 24 | B27: Cr | C27: クロム | D27: Chromium | E27: 51.9961 | F27: 52
A28: 25 | B28: Mn | C28: マンガン | D28: Manganese | E28: 54.938043 | F28: 54.94
A29: 26 | B29: Fe | C29: 鉄 | D29: Iron | E29: 55.845 | F29: 55.85
A30: 27 | B30: Co | C30: コバルト | D30: Cobalt | E30: 58.933194 | F30: 58.93
A31: 28 | B31: Ni | C31: ニッケル | D31: Nickel | E31: 58.6934 | F31: 58.69
A32: 29 | B32: Cu | C32: 銅 | D32: Copper | E32: 63.546 | F32: 63.55
A33: 30 | B33: Zn | C33: 亜鉛 | D33: Zinc | E33: 65.38 | F33: 65.38
A34: 31 | B34: Ga | C34: ガリウム | D34: Gallium | E34: 69.723 | F34: 69.72
A35: 32 | B35: Ge | C35: ゲルマニウム | D35: Germanium | E35: 72.63 | F35: 72.63
A36: 33 | B36: As | C36: ヒ素 | D36: Arsenic | E36: 74.921595 | F36: 74.92
A37: 34 | B37: Se | C37: セレン | D37: Selenium | E37: 78.971 | F37: 78.97
A38: 35 | B38: Br | C38: 臭素 | D38: Bromine | E38: =(79.901+79.907)/2 -> 79.904 | F38: 79.9
A39: 36 | B39: Kr | C39: クリプトン | D39: Krypton | E39: 83.798 | F39: 83.8
A40: 37 | B40: Rb | C40: ルビジウム | D40: Rubidium | E40: 85.4678 | F40: 85.47
A41: 38 | B41: Sr | C41: ストロンチウム | D41: Strontium | E41: 87.62 | F41: 87.62
A42: 39 | B42: Y | C42: イットリウム | D42: Yttrium | E42: 88.90584 | F42: 88.91
A43: 40 | B43: Zr | C43: ジルコニウム | D43: Zirconium | E43: 91.224 | F43: 91.22
A44: 41 | B44: Nb | C44: ニオブ | D44: Niobium | E44: 92.90637 | F44: 92.91
A45: 42 | B45: Mo | C45: モリブデン | D45: Molybdenum | E45: 95.95 | F45: 95.95
A46: 43 | B46: Tc | C46: テクネチウム | D46: Technetium | E46: 99 | F46: 99
A47: 44 | B47: Ru | C47: ルテニウム | D47: Ruthenium | E47: 101.07 | F47: 101.1
A48: 45 | B48: Rh | C48: ロジウム | D48: Rhodium | E48: 102.90549 | F48: 102.9
A49: 46 | B49: Pd | C49: パラジウム | D49: Palladium | E49: 106.42 | F49: 106.4
A50: 47 | B50: Ag | C50: 銀 | D50: Silver | E50: 107.8682 | F50: 107.9
A51: 48 | B51: Cd | C51: カドミウム | D51: Cadmium | E51: 112.414 | F51: 112.4
A52: 49 | B52: In | C52: インジウム | D52: Indium | E52: 114.818 | F52: 114.8
A53: 50 | B53: Sn | C53: スズ | D53: Tin | E53: 118.71 | F53: 118.7
A54: 51 | B54: Sb | C54: アンチモン | D54: Antimony | E54: 121.76 | F54: 121.8
A55: 52 | B55: Te | C55: テルル | D55: Tellurium | E55: 127.6 | F55: 127.6
A56: 53 | B56: I | C56: ヨウ素 | D56: Iodine | E56: 126.90447 | F56: 126.9
A57: 54 | B57: Xe | C57: キセノン | D57: Xenon | E57: 131.293 | F57: 131.3
A58: 55 | B58: Cs | C58: セシウム | D58: Caesium | E58: 132.905452 | F58: 132.9
A59: 56 | B59: Ba | C59: バリウム | D59: Barium | E59: 137.327 | F59: 137.3
A60: 57 | B60: La | C60: ランタン | D60: Lanthanum | E60: 138.90547 | F60: 138.9
A61: 58 | B61: Ce | C61: セリウム | D61: Cerium | E61: 140.116 | F61: 140.1
A62: 59 | B62: Pr | C62: プラセオジム | D62: Praseodymium | E62: 140.90766 | F62: 140.9
A63: 60 | B63: Nd | C63: ネオジム | D63: Neodymium | E63: 144.242 | F63: 144.2
A64: 61 | B64: Pm | C64: プロメチウム | D64: Promethium | E64: 145 | F64: 145
A65: 62 | B65: Sm | C65: サマリウム | D65: Samarium | E65: 150.36 | F65: 150.4
A66: 63 | B66: Eu | C66: ユウロピウム | D66: Europium | E66: 151.964 | F66: 152
A67: 64 | B67: Gd | C67: ガドリニウム | D67: Gadolinium | E67: 157.25 | F67: 157.3
A68: 65 | B68: Tb | C68: テルビウム | D68: Terbium | E68: 158.925354 | F68: 158.9
A69: 66 | B69: Dy | C69: ジスプロシウム | D69: Dysprosium | E69: 162.5 | F69: 162.5
A70: 67 | B70: Ho | C70: ホルミウム | D70: Holmium | E70: 164.930328 | F70: 164.9
A71: 68 | B71: Er | C71: エルビウム | D71: Erbium | E71: 167.259 | F71: 167.3
A72: 69 | B72: Tm | C72: ツリウム | D72: Thulium | E72: 168.934218 | F72: 168.9
A73: 70 | B73: Yb | C73: イッテルビウム | D73: Ytterbium | E73: 173.045 | F73: 173
A74: 71 | B74: Lu | C74: ルテチウム | D74: Lutetium | E74: 174.9668 | F74: 175
A75: 72 | B75: Hf | C75: ハフニウム | D75: Hafnium | E75: 178.486 | F75: 178.5
A76: 73 | B76: Ta | C76: タンタル | D76: Tantalum | E76: 180.94788 | F76: 180.9
A77: 74 | B77: W | C77: タングステン | D77: Tungsten | E77: 183.84 | F77: 183.8
A78: 75 | B78: Re | C78: レニウム | D78: Rhenium | E78: 186.207 | F78: 186.2
A79: 76 | B79: Os | C79: オスミウム | D79: Osmium | E79: 190.23 | F79: 190.2
A80: 77 | B80: Ir | C80: イリジウム | D80: Iridium | E80: 192.217 | F80: 192.2
A81: 78 | B81: Pt | C81: 白金 | D81: Platinum | E81: 195.084 | F81: 195.1
A82: 79 | B82: Au | C82: 金 | D82: Gold | E82: 196.96657 | F82: 197
A83: 80 | B83: Hg | C83: 水銀 | D83: Mercury | E83: 200.592 | F83: 200.6
A84: 81 | B84: Tl | C84: タリウム | D84: Thallium | E84: =(204.382+204.385)/2 -> 204.3835 | F84: 204.4
A85: 82 | B85: Pb | C85: 鉛 | D85: Lead | E85: 207.2 | F85: 207.2
A86: 83 | B86: Bi | C86: ビスマス | D86: Bismuth | E86: 208.9804 | F86: 209
A87: 84 | B87: Po | C87: ポロニウム | D87: Polonium | E87: 210 | F87: 210
A88: 85 | B88: At | C88: アスタチン | D88: Astatine | E88: 210 | F88: 210
A89: 86 | B89: Rn | C89: ラドン | D89: Radon | E89: 222 | F89: 222
A90: 87 | B90: Fr | C90: フランシウム | D90: Francium | E90: 223 | F90: 223
A91: 88 | B91: Ra | C91: ラジウム | D91: Radium | E91: 226 | F91: 226
A92: 89 | B92: Ac | C92: アクチニウム | D92: Actinium | E92: 227 | F92: 227
A93: 90 | B93: Th | C93: トリウム | D93: Thorium | E93: 232.0377 | F93: 232
A94: 91 | B94: Pa | C94: プロトアクチニウム | D94: Protactinium | E94: 231.03588 | F94: 231
A95: 92 | B95: U | C95: ウラン | D95: Uranium | E95: 238.02891 | F95: 238
A96: 93 | B96: Np | C96: ネプツニウム | D96: Neptunium | E96: 237 | F96: 237
A97: 94 | B97: Pu | C97: プルトニウム | D97: Plutonium | E97: 239 | F97: 239
A98: 95 | B98: Am | C98: アメリシウム | D98: Americium | E98: 243 | F98: 243
A99: 96 | B99: Cm | C99: キュリウム | D99: Curium | E99: 247 | F99: 247
A100: 97 | B100: Bk | C100: バークリウム | D100: Berkelium | E100: 247 | F100: 247
A101: 98 | B101: Cf | C101: カリホルニウム | D101: Californium | E101: 252 | F101: 252
A102: 99 | B102: Es | C102: アインスタイニウム | D102: Einsteinium | E102: 252 | F102: 252
A103: 100 | B103: Fm | C103: フェルミウム | D103: Fermium | E103: 257 | F103: 257
A104: 101 | B104: Md | C104: メンデレビウム | D104: Mendelevium | E104: 258 | F104: 258
A105: 102 | B105: No | C105: ノーベリウム | D105: Nobelium | E105: 259 | F105: 259
A106: 103 | B106: Lr | C106: ローレンシウム | D106: Lawrencium | E106: 262 | F106: 262
A107: 104 | B107: Rf | C107: ラザホージウム | D107: Rutherfordium | E107: 267 | F107: 267
A108: 105 | B108: Db | C108: ドブニウム | D108: Dubnium | E108: 268 | F108: 268
A109: 106 | B109: Sg | C109: シーボーギウム | D109: Seaborgium | E109: 271 | F109: 271
A110: 107 | B110: Bh | C110: ボーリウム | D110: Bohrium | E110: 272 | F110: 272
A111: 108 | B111: Hs | C111: ハッシウム | D111: Hassium | E111: 277 | F111: 277
A112: 109 | B112: Mt | C112: マイトネリウム | D112: Meitnerium | E112: 276 | F112: 276
A113: 110 | B113: Ds | C113: ダームスタチウム | D113: Darmstadtium | E113: 281 | F113: 281
A114: 111 | B114: Rg | C114: レントゲニウム | D114: Roentgenium | E114: 280 | F114: 280
A115: 112 | B115: Cn | C115: コペルニシウム | D115: Copernicium | E115: 285 | F115: 285
A116: 113 | B116: Nh | C116: ニホニウム | D116: Nihonium | E116: 278 | F116: 278
A117: 114 | B117: Fl | C117: フレロビウム | D117: Flerovium | E117: 289 | F117: 289
A118: 115 | B118: Mc | C118: モスコビウム | D118: Moscovium | E118: 289 | F118: 289
A119: 116 | B119: Lv | C119: リバモリウム | D119: Livermorium | E119: 293 | F119: 293
A120: 117 | B120: Ts | C120: テネシン | D120: Tennessine | E120: 293 | F120: 293
A121: 118 | B121: Og | C121: オガネソン | D121: Oganesson | E121: 294 | F121: 294

Sheet AW2019
C1: 原子量表（2019） | D1: （化学と工業, Vol. 72, No.4, 2019）
A3: No. | B3: Symbol | C3: 元素名 | D3: Atomic Name | E3: Atomic Weight | F3: 4digit AW | H3: ◎ 原子量表（2019）
A4: 1 | B4: H | C4: 水素 | D4: Hydrogen | E4: =(1.00784+1.00811)/2 -> 1.007975 | F4: 1.008 | I4: http://www.chemistry.or.jp/activity/atomictable2019.pdf
A5: 2 | B5: He | C5: ヘリウム | D5: Helium | E5: 4.002602 | F5: 4.003
A6: 3 | B6: Li | C6: リチウム | D6: Lithium | E6: =(6.938+6.997)/2 -> 6.9675 | F6: 6.941 | H6: ※ | I6: 出典（化学と工業、 Vol. 72, No. 4, 2019）によると、H、C、N、Oなど13元素については、
A7: 4 | B7: Be | C7: ベリリウム | D7: Beryllium | E7: 9.0121831 | F7: 9.012 | I7: 同位体存在度の変動があるため、原子量も変動範囲（の下限と上限）で示されている。
A8: 5 | B8: B | C8: ホウ素 | D8: Boron | E8: =(10.806+10.821)/2 -> 10.8135 | F8: 10.81 | I8: これらの元素については、「変動範囲の中間点を原子量の値として使用しないこと」という
A9: 6 | B9: C | C9: 炭素 | D9: Carbon | E9: =(12.0096+12.0116)/2 -> 12.0106 | F9: 12.01 | I9: 注意書きがされている。しかし、ここでは敢えて、これら13元素については変動範囲の中間
A10: 7 | B10: N | C10: 窒素 | D10: Nitrogen | E10: =(14.00643+14.00728)/2 -> 14.006855 | F10: 14.01 | I10: 値を原子量の値として使用しているので、注意されたい（計算の便宜上仕方ないのでは？）
A11: 8 | B11: O | C11: 酸素 | D11: Oxygen | E11: =(15.99903+15.99977)/2 -> 15.9994 | F11: 16
A12: 9 | B12: F | C12: フッ素 | D12: Fluorine | E12: 18.99840316 | F12: 19 | H12: ＊ | I12: 今後、原子量の値が改定されたときや、使用者の過去の計算との整合性を取るために、独自
A13: 10 | B13: Ne | C13: ネオン | D13: Neon | E13: 20.1797 | F13: 20.18 | I13: の原子量の値を使用したいというような場合、この表の原子量の値を適宜、上書きすること
A14: 11 | B14: Na | C14: ナトリウム | D14: Sodium | E14: 22.98976928 | F14: 22.99 | I14: により、所望の原子量の値を計算に使用することができる
A15: 12 | B15: Mg | C15: マグネシウム | D15: Magnesium | E15: =(24.304+24.307)/2 -> 24.3055 | F15: 24.31 | I15: （その際、セルの位置が変わるとうまく計算できなくなるので、セルの位置は変えずに、
A16: 13 | B16: Al | C16: アルミニウム | D16: Aluminium | E16: 26.9815384 | F16: 26.98 | I16: セルの中身だけを上書きすること）
A17: 14 | B17: Si | C17: ケイ素 | D17: Silicon | E17: =(28.084+28.086)/2 -> 28.085 | F17: 28.09
A18: 15 | B18: P | C18: リン | D18: Phosphorus | E18: 30.973762 | F18: 30.97
A19: 16 | B19: S | C19: 硫黄 | D19: Sulfur | E19: =(32.059+32.076)/2 -> 32.0675 | F19: 32.07
A20: 17 | B20: Cl | C20: 塩素 | D20: Chlorine | E20: =(35.446+35.457)/2 -> 35.4515 | F20: 35.45
A21: 18 | B21: Ar | C21: アルゴン | D21: Argon | E21: =(39.792+39.963)/2 -> 39.8775 | F21: 39.95
A22: 19 | B22: K | C22: カリウム | D22: Potassium | E22: 39.0983 | F22: 39.1
A23: 20 | B23: Ca | C23: カルシウム | D23: Calcium | E23: 40.078 | F23: 40.08
A24: 21 | B24: Sc | C24: スカンジウム | D24: Scandium | E24: 44.955908 | F24: 44.96
A25: 22 | B25: Ti | C25: チタン | D25: Titanium | E25: 47.867 | F25: 47.87
A26: 23 | B26: V | C26: バナジウム | D26: Vanadium | E26: 50.9415 | F26: 50.94
A27: 24 | B27: Cr | C27: クロム | D27: Chromium | E27: 51.9961 | F27: 52
A28: 25 | B28: Mn | C28: マンガン | D28: Manganese | E28: 54.938043 | F28: 54.94
A29: 26 | B29: Fe | C29: 鉄 | D29: Iron | E29: 55.845 | F29: 55.85
A30: 27 | B30: Co | C30: コバルト | D30: Cobalt | E30: 58.933194 | F30: 58.93
A31: 28 | B31: Ni | C31: ニッケル | D31: Nickel | E31: 58.6934 | F31: 58.69
A32: 29 | B32: Cu | C32: 銅 | D32: Copper | E32: 63.546 | F32: 63.55
A33: 30 | B33: Zn | C33: 亜鉛 | D33: Zinc | E33: 65.38 | F33: 65.38
A34: 31 | B34: Ga | C34: ガリウム | D34: Gallium | E34: 69.723 | F34: 69.72
A35: 32 | B35: Ge | C35: ゲルマニウム | D35: Germanium | E35: 72.63 | F35: 72.63
A36: 33 | B36: As | C36: ヒ素 | D36: Arsenic | E36: 74.921595 | F36: 74.92
A37: 34 | B37: Se | C37: セレン | D37: Selenium | E37: 78.971 | F37: 78.97
A38: 35 | B38: Br | C38: 臭素 | D38: Bromine | E38: =(79.901+79.907)/2 -> 79.904 | F38: 79.9
A39: 36 | B39: Kr | C39: クリプトン | D39: Krypton | E39: 83.798 | F39: 83.8
A40: 37 | B40: Rb | C40: ルビジウム | D40: Rubidium | E40: 85.4678 | F40: 85.47
A41: 38 | B41: Sr | C41: ストロンチウム | D41: Strontium | E41: 87.62 | F41: 87.62
A42: 39 | B42: Y | C42: イットリウム | D42: Yttrium | E42: 88.90584 | F42: 88.91
A43: 40 | B43: Zr | C43: ジルコニウム | D43: Zirconium | E43: 91.224 | F43: 91.22
A44: 41 | B44: Nb | C44: ニオブ | D44: Niobium | E44: 92.90637 | F44: 92.91
A45: 42 | B45: Mo | C45: モリブデン | D45: Molybdenum | E45: 95.95 | F45: 95.95
A46: 43 | B46: Tc | C46: テクネチウム | D46: Technetium | E46: 99 | F46: 99
A47: 44 | B47: Ru | C47: ルテニウム | D47: Ruthenium | E47: 101.07 | F47: 101.1
A48: 45 | B48: Rh | C48: ロジウム | D48: Rhodium | E48: 102.90549 | F48: 102.9
A49: 46 | B49: Pd | C49: パラジウム | D49: Palladium | E49: 106.42 | F49: 106.4
A50: 47 | B50: Ag | C50: 銀 | D50: Silver | E50: 107.8682 | F50: 107.9
A51: 48 | B51: Cd | C51: カドミウム | D51: Cadmium | E51: 112.414 | F51: 112.4
A52: 49 | B52: In | C52: インジウム | D52: Indium | E52: 114.818 | F52: 114.8
A53: 50 | B53: Sn | C53: スズ | D53: Tin | E53: 118.71 | F53: 118.7
A54: 51 | B54: Sb | C54: アンチモン | D54: Antimony | E54: 121.76 | F54: 121.8
A55: 52 | B55: Te | C55: テルル | D55: Tellurium | E55: 127.6 | F55: 127.6
A56: 53 | B56: I | C56: ヨウ素 | D56: Iodine | E56: 126.90447 | F56: 126.9
A57: 54 | B57: Xe | C57: キセノン | D57: Xenon | E57: 131.293 | F57: 131.3
A58: 55 | B58: Cs | C58: セシウム | D58: Caesium | E58: 132.905452 | F58: 132.9
A59: 56 | B59: Ba | C59: バリウム | D59: Barium | E59: 137.327 | F59: 137.3
A60: 57 | B60: La | C60: ランタン | D60: Lanthanum | E60: 138.90547 | F60: 138.9
A61: 58 | B61: Ce | C61: セリウム | D61: Cerium | E61: 140.116 | F61: 140.1
A62: 59 | B62: Pr | C62: プラセオジム | D62: Praseodymium | E62: 140.90766 | F62: 140.9
A63: 60 | B63: Nd | C63: ネオジム | D63: Neodymium | E63: 144.242 | F63: 144.2
A64: 61 | B64: Pm | C64: プロメチウム | D64: Promethium | E64: 145 | F64: 145
A65: 62 | B65: Sm | C65: サマリウム | D65: Samarium | E65: 150.36 | F65: 150.4
A66: 63 | B66: Eu | C66: ユウロピウム | D66: Europium | E66: 151.964 | F66: 152
A67: 64 | B67: Gd | C67: ガドリニウム | D67: Gadolinium | E67: 157.25 | F67: 157.3
A68: 65 | B68: Tb | C68: テルビウム | D68: Terbium | E68: 158.925354 | F68: 158.9
A69: 66 | B69: Dy | C69: ジスプロシウム | D69: Dysprosium | E69: 162.5 | F69: 162.5
A70: 67 | B70: Ho | C70: ホルミウム | D70: Holmium | E70: 164.930328 | F70: 164.9
A71: 68 | B71: Er | C71: エルビウム | D71: Erbium | E71: 167.259 | F71: 167.3
A72: 69 | B72: Tm | C72: ツリウム | D72: Thulium | E72: 168.934218 | F72: 168.9
A73: 70 | B73: Yb | C73: イッテルビウム | D73: Ytterbium | E73: 173.045 | F73: 173
A74: 71 | B74: Lu | C74: ルテチウム | D74: Lutetium | E74: 174.9668 | F74: 175
A75: 72 | B75: Hf | C75: ハフニウム | D75: Hafnium | E75: 178.49 | F75: 178.5
A76: 73 | B76: Ta | C76: タンタル | D76: Tantalum | E76: 180.94788 | F76: 180.9
A77: 74 | B77: W | C77: タングステン | D77: Tungsten | E77: 183.84 | F77: 183.8
A78: 75 | B78: Re | C78: レニウム | D78: Rhenium | E78: 186.207 | F78: 186.2
A79: 76 | B79: Os | C79: オスミウム | D79: Osmium | E79: 190.23 | F79: 190.2
A80: 77 | B80: Ir | C80: イリジウム | D80: Iridium | E80: 192.217 | F80: 192.2
A81: 78 | B81: Pt | C81: 白金 | D81: Platinum | E81: 195.084 | F81: 195.1
A82: 79 | B82: Au | C82: 金 | D82: Gold | E82: 196.96657 | F82: 197
A83: 80 | B83: Hg | C83: 水銀 | D83: Mercury | E83: 200.592 | F83: 200.6
A84: 81 | B84: Tl | C84: タリウム | D84: Thallium | E84: =(204.382+204.385)/2 -> 204.3835 | F84: 204.4
A85: 82 | B85: Pb | C85: 鉛 | D85: Lead | E85: 207.2 | F85: 207.2
A86: 83 | B86: Bi | C86: ビスマス | D86: Bismuth | E86: 208.9804 | F86: 209
A87: 84 | B87: Po | C87: ポロニウム | D87: Polonium | E87: 210 | F87: 210
A88: 85 | B88: At | C88: アスタチン | D88: Astatine | E88: 210 | F88: 210
A89: 86 | B89: Rn | C89: ラドン | D89: Radon | E89: 222 | F89: 222
A90: 87 | B90: Fr | C90: フランシウム | D90: Francium | E90: 223 | F90: 223
A91: 88 | B91: Ra | C91: ラジウム | D91: Radium | E91: 226 | F91: 226
A92: 89 | B92: Ac | C92: アクチニウム | D92: Actinium | E92: 227 | F92: 227
A93: 90 | B93: Th | C93: トリウム | D93: Thorium | E93: 232.0377 | F93: 232
A94: 91 | B94: Pa | C94: プロトアクチニウム | D94: Protactinium | E94: 231.03588 | F94: 231
A95: 92 | B95: U | C95: ウラン | D95: Uranium | E95: 238.02891 | F95: 238
A96: 93 | B96: Np | C96: ネプツニウム | D96: Neptunium | E96: 237 | F96: 237
A97: 94 | B97: Pu | C97: プルトニウム | D97: Plutonium | E97: 239 | F97: 239
A98: 95 | B98: Am | C98: アメリシウム | D98: Americium | E98: 243 | F98: 243
A99: 96 | B99: Cm | C99: キュリウム | D99: Curium | E99: 247 | F99: 247
A100: 97 | B100: Bk | C100: バークリウム | D100: Berkelium | E100: 247 | F100: 247
A101: 98 | B101: Cf | C101: カリホルニウム | D101: Californium | E101: 252 | F101: 252
A102: 99 | B102: Es | C102: アインスタイニウム | D102: Einsteinium | E102: 252 | F102: 252
A103: 100 | B103: Fm | C103: フェルミウム | D103: Fermium | E103: 257 | F103: 257
A104: 101 | B104: Md | C104: メンデレビウム | D104: Mendelevium | E104: 258 | F104: 258
A105: 102 | B105: No | C105: ノーベリウム | D105: Nobelium | E105: 259 | F105: 259
A106: 103 | B106: Lr | C106: ローレンシウム | D106: Lawrencium | E106: 262 | F106: 262
A107: 104 | B107: Rf | C107: ラザホージウム | D107: Rutherfordium | E107: 267 | F107: 267
A108: 105 | B108: Db | C108: ドブニウム | D108: Dubnium | E108: 268 | F108: 268
A109: 106 | B109: Sg | C109: シーボーギウム | D109: Seaborgium | E109: 271 | F109: 271
A110: 107 | B110: Bh | C110: ボーリウム | D110: Bohrium | E110: 272 | F110: 272
A111: 108 | B111: Hs | C111: ハッシウム | D111: Hassium | E111: 277 | F111: 277
A112: 109 | B112: Mt | C112: マイトネリウム | D112: Meitnerium | E112: 276 | F112: 276
A113: 110 | B113: Ds | C113: ダームスタチウム | D113: Darmstadtium | E113: 281 | F113: 281
A114: 111 | B114: Rg | C114: レントゲニウム | D114: Roentgenium | E114: 280 | F114: 280
A115: 112 | B115: Cn | C115: コペルニシウム | D115: Copernicium | E115: 285 | F115: 285
A116: 113 | B116: Nh | C116: ニホニウム | D116: Nihonium | E116: 278 | F116: 278
A117: 114 | B117: Fl | C117: フレロビウム | D117: Flerovium | E117: 289 | F117: 289
A118: 115 | B118: Mc | C118: モスコビウム | D118: Moscovium | E118: 289 | F118: 289
A119: 116 | B119: Lv | C119: リバモリウム | D119: Livermorium | E119: 293 | F119: 293
A120: 117 | B120: Ts | C120: テネシン | D120: Tennessine | E120: 293 | F120: 293
A121: 118 | B121: Og | C121: オガネソン | D121: Oganesson | E121: 294 | F121: 294
